Workbook

Sheet EntradaDatosExplotación
A1: Grup de Remugants "Ramon Trias". Hoja de entrada de datos de una explotación para el análisis de la gestión técnica y económica
B11: Referencias en la web | C11: http://www.remugants.cat/8/estudio_costes_en_explotaciones_de_vacas_de_leche_ccaa_1999_742997.html
C12: http://www.remugants.cat/8/gestion_tecnica_y_economica_753717.html
C13: http://www.remugants.cat/8/gestion_economica_en_vacuno_de_leche_1386729.html
D14: =NOW() -> 2022-02-24T19:29:05.990
B15: Conjunto de datos que podemos modificar. Para el análisis de grupo se deben emplear los mismos | G15: convertidor €/pta
B16: Año | E16: 2021 | G16: PTA | H16: €
B17: Renta referencia | E17: 31502 | G17: 480 | H17: =G17/166.386 -> 2.884858101
B18: Interés a aplicar edificios | E18: 0.005393333333 | G18: =H18*166.386 -> 54.90738 | H18: 0.33
B19: Otros tipos de interés general | E19: 0.005393333333
B20: Valor base ternera 21 a 24 meses preñada | E20: 1457.5
B21: Valor base vaca de primer parto | E21: 1325
B23: Grup de Remugants "Ramon Trias" | F23: AAAAA
B25: Municipio | D25: Comarca | F25: Província | H25: Nombre explotación
B26: B | D26: BB | F26: BBB | H26: dddd
B27: Control lechero oficial (Sí/No) | H27: Sí
B29: Régimen tenencia, superficie en ha
B30: Propiedad | D30: Arrendamiento | F30: Total
B31: Secano | C31: Regadío | D31: Secano | E31: Regadío | F31: Secano | G31: Regadío | H31: Total
B32: 50 | C32: 25 | D32: 0 | F32: =B32+D32 -> 50 | G32: =C32+E32 -> 25 | H32: =SUM(B32:E32) -> 75
B34: Cultivos, superficie dedicada a leche
E35: Superfície a leche | G35: Rendimiento kg/ha
E36: Secano | F36: Regadío | G36: Secano | H36: Regadío
B37: Forrajes y otros cultivos para vacas de leche | E37: =SUM(E38:E46) -> 50 | F37: =SUM(F38:F46) -> 25
B38: Alfalfa | F38: 10
B39: Raigrás/maíz | F39: 15
B40: Avena | E40: 25 | J40: =IF(F40>D40,"Error: superfície regadiu a llet no pot ser superior a la total","") -> 
B41: Sorgo | E41: 25
J46: =IF(F46>D46,"Error: superfície regadiu a llet no pot ser superior a la total","") -> 
J47: =IF(F47>D47,"Error: superfície regadiu a llet no pot ser superior a la total","") -> 
J48: =IF(F48>D48,"Error: superfície regadiu a llet no pot ser superior a la total","") -> 
J49: =IF(F49>D49,"Error: superfície regadiu a llet no pot ser superior a la total","") -> 
J50: =IF(F50>D50,"Error: superfície regadiu a llet no pot ser superior a la total","") -> 
B51: Superfície a leche | E51: =E37 -> 50 | F51: =F37 -> 25 | G51: =E51+F51 -> 75
E52: =IF(E51>F32,"Revisar supefície secà","") ->  | F52: =IF(F51>G32,"Revisar supefície regadiu","") -> 
B54: Gastos parcelas cultivos para leche, €
B55: Tipos de gastos | C55: =IF($B38="","",$B38) -> Alfalfa | D55: =IF($B39="","",$B39) -> Raigrás/maíz | E55: =IF($B40="","",$B40) -> Avena | F55: =IF(B41="","",B41) -> Sorgo | G55: =IF(B42="","",B42) ->  | H55: =IF($B43="","",$B43) ->  | I55: =IF($B44="","",$B44) ->  | J55: =IF($B45="","",$B45) ->  | K55: =IF($B46="","",$B46) ->  | L55: =IF($B47="","",$B48) ->  | M55: =IF($B49="","",$B49) ->  | N55: =IF($B50="","",$B50) ->  | O55: Si sólo tenemos el total de gastos de cada partida | P55: Total
B56: Semillas | O56: 4000 | P56: =IF(O56="",SUM(C56:G56),O56) -> 4000
B57: Abonos | O57: 3200 | P57: =IF(O57="",SUM(C57:G57),O57) -> 3200
B58: Tratamientos | O58: 2100 | P58: 2100
B59: Plásticos y conservantes | O59: 1321 | P59: 1321
B60: Otros (agua riego, etc.) | O60: 2000 | P60: 2000
B61: Total | C61: =SUM(C56:C60) -> 0 | D61: =SUM(D56:D60) -> 0 | E61: =SUM(E56:E60) -> 0 | F61: =SUM(F56:F60) -> 0 | G61: =SUM(G56:G60) -> 0 | H61: =SUM(H56:H60) -> 0 | I61: 0 | J61: 0 | K61: 0 | L61: 0 | M61: =SUM(M56:M60) -> 0 | N61: =SUM(N56:N60) -> 0 | O61: =SUM(O56:O60) -> 12621 | P61: 12621
B63: Precio mercado arrendamientos de tierras en la zona (€/ha)
B64: Tipos | C64: Secano | D64: Regadío
B65: Arrendada | C65: 121 | D65: 270
B67: Inventario ganado e incidencias
B68: Vacas presentes | C68: Inventario inicio | E68: Compras, altas, ventas, bajas | J68: Inventario final
E69: Durante todo el año
B70: Nº lactación | C70: Nº vacas | D70: % | E70: Compras | F70: Altas reposición | G70: Ventas (para vida) | H70: Ventas (a matadero) | I70: Bajas por muerte | J70: Nº vacas | K70: % | L70: Media anual | M70: % | N70: UGM | O70: Capital animal | P70: Valor cambio inventario
B71: 1 lactación | C71: 38 | D71: =IF(C74="","",C71/C74) -> 0.3423423423 | E71: 0 | F71: 25 | G71: 0 | H71: 0 | I71: 0 | J71: 43 | K71: =IF(J74="","",J71/J74) -> 0.3553719008 | L71: =(C71+J71)/2 -> 40.5 | M71: =L71/$L$74 -> 0.349137931 | O71: =L71*Preu_Vaca -> 53662.5 | P71: =(J71-C71)*Preu_Vaca -> 6625
B72: 2 lactación | C72: 48 | D72: =IF(C74="","",C72/C74) -> 0.4324324324 | E72: 0 | G72: 0 | H72: 0 | I72: 0 | J72: 49 | K72: =IF(J74="","",J72/J74) -> 0.4049586777 | L72: 48.5 | M72: =L72/$L$74 -> 0.4181034483 | O72: =L72*Preu_Vaca*0.9 -> 57836.25 | P72: =(J72-C72)*Preu_Vaca*0.9 -> 1192.5
B73: 3 y más lactación | C73: 25 | D73: =IF(C74="","",C73/C74) -> 0.2252252252 | E73: 0 | G73: 0 | H73: 16 | I73: 5 | J73: 29 | K73: =IF(J74="","",J73/J74) -> 0.2396694215 | L73: 27 | M73: =L73/$L$74 -> 0.2327586207 | O73: =L73*Preu_Vaca*0.55 -> 19676.25 | P73: =(J73-C73)*Preu_Vaca*0.55 -> 2915
B74: Totales | C74: =SUM(C71:C73) -> 111 | D74: 1 | E74: 0 | F74: 25 | G74: 0 | H74: 16 | I74: 5 | J74: 121 | K74: 1 | L74: 116 | N74: =L74 -> 116 | O74: =SUM(O71:O73) -> 131175 | P74: =SUM(P71:P73) -> 10732.5
B75: Vacas secas | C75: 8 | D75: ________________________________________________________________________________________________________________ | I75: Vacas secas | J75: 10 | L75: 9 | M75: =L75/L74 -> 0.0775862069 | O75: Capital aproximación terneras
B76: Terneras < 1 año | C76: =SUM(C83:C86) -> 42 | D76: ________________________________________________________________________________________________________________ | I76: Terneras < 1 año | J76: =SUM(J83:J86) -> 37 | L76: 39.5 | O76: =L76*Preu_vedella*0.3625 -> 20869.57812 | P76: =(J76-C76)*Preu_vedella*0.3625 -> -2641.71875
B77: Terneras > 1 año no preñadas | C77: 10 | D77: _________________________________________________________________________________________________ | H77: Terneras > 1 año no preñadas | J77: 6 | L77: 8 | O77: =(L77+L78)*Preu_vedella*0.7638 -> 47312.63625 | P77: =(J77-C77+J78-C78)*Preu_vedella*0.7638 -> -7792.6695
B78: Terneras preñadas | C78: =C93-C76-C77 -> 36 | D78: ________________________________________________________________________________________________________________ | I78: Terneras preñadas | J78: =J93-J76-J77 -> 33 | L78: 34.5 | O78: =SUM(O76:O77) -> 68182.21438
B79: Total terneras | C79: =SUM(C76:C78) -> 88 | D79: ________________________________________________________________________________________________________________ | I79: Total terneras | J79: =SUM(J76:J78) -> 76 | L79: 82
B80: Terneras de recría | C80: Inventario inicio | J80: Inventario final
N81: Capital animal | O81: Valor cambio inventario
B82: Edad | C82: Nº terneras | D82: % | I82: Edad | J82: Nº terneras | K82: % | L82: Media | M82: UGM
B83: 0 a 3 meses | C83: 10 | D83: =IF(C93="","",C83/C93) -> 0.1136363636 | E83: ___________________________________________________________________________________________________ | I83: 0 a 3 meses | J83: 10 | K83: =IF(J93="","",J83/J93) -> 0.1315789474 | L83: =(C83+J83)/2 -> 10 | M83: =L83*0.4 -> 4 | N83: =L83*Preu_vedella*0.2 -> 2915 | O83: =(J83-C83)*Preu_vedella*0.2 -> 0
B84: 3 a 6 meses | C84: 15 | D84: =IF(C93="","",C84/C93) -> 0.1704545455 | E84: ___________________________________________________________________________________________________ | I84: 3 a 6 meses | J84: 12 | K84: =IF(J93="","",J84/J93) -> 0.1578947368 | L84: 13.5 | M84: =L84*0.4 -> 5.4 | N84: =L84*Preu_vedella*0.33 -> 6493.1625 | O84: =(J84-C84)*Preu_vedella*0.33 -> -1442.925
B85: 6 a 9 meses | C85: 6 | D85: =IF(C93="","",C85/C93) -> 0.06818181818 | E85: ___________________________________________________________________________________________________ | I85: 6 a 9 meses | J85: 9 | K85: =IF(J93="","",J85/J93) -> 0.1184210526 | L85: 7.5 | M85: =L85*0.6 -> 4.5 | N85: =L85*Preu_vedella*0.42 -> 4591.125 | O85: =M85*Preu_vedella*0.42 -> 2754.675
B86: 9 a 12 meses | C86: 11 | D86: =IF(C93="","",C86/C93) -> 0.125 | E86: ___________________________________________________________________________________________________ | I86: 9 a 12 meses | J86: 6 | K86: =IF(J93="","",J86/J93) -> 0.07894736842 | L86: 8.5 | M86: 5.1 | N86: =L86*Preu_vedella*0.5 -> 6194.375 | O86: =(J86-C86)*Preu_vedella*0.5 -> -3643.75
B87: 12 a 15 meses | C87: 13 | D87: =IF(C93="","",C87/C93) -> 0.1477272727 | E87: ___________________________________________________________________________________________________ | I87: 12 a 15 meses | J87: 15 | K87: =IF(J93="","",J87/J93) -> 0.1973684211 | L87: 14 | M87: 8.4 | N87: =L87*Preu_vedella*0.67 -> 13671.35 | O87: =(J87-C87)*Preu_vedella*0.67 -> 1953.05
B88: 15 a 18 meses | C88: 15 | D88: =IF(C93="","",C88/C93) -> 0.1704545455 | E88: ___________________________________________________________________________________________________ | I88: 15 a 18 meses | J88: 12 | K88: =IF(J93="","",J88/J93) -> 0.1578947368 | L88: 13.5 | M88: 8.1 | N88: =L88*Preu_vedella*0.83 -> 16331.2875 | O88: =(J88-C88)*Preu_vedella*0.83 -> -3629.175
B89: 18 a 21 meses | C89: 6 | D89: =IF(C93="","",C89/C93) -> 0.06818181818 | E89: ___________________________________________________________________________________________________ | I89: 18 a 21 meses | J89: 6 | K89: =IF(J93="","",J89/J93) -> 0.07894736842 | L89: 6 | M89: 3.6 | N89: =L89*Preu_vedella*0.83 -> 7258.35 | O89: =(J89-C89)*Preu_vedella*0.83 -> 0
B90: 21 a 24 meses | C90: 5 | D90: =IF(C93="","",C90/C93) -> 0.05681818182 | E90: ___________________________________________________________________________________________________ | I90: 21 a 24 meses | J90: 3 | K90: =IF(J93="","",J90/J93) -> 0.03947368421 | L90: 4 | M90: 2.4 | N90: =L90*Preu_vedella -> 5830 | O90: =(J90-C90)*Preu_vedella -> -2915
B91: 24 a 27 meses | C91: 7 | D91: =IF(C93="","",C91/C93) -> 0.07954545455 | E91: ___________________________________________________________________________________________________ | I91: 24 a 27 meses | J91: 2 | K91: =IF(J93="","",J91/J93) -> 0.02631578947 | L91: 4.5 | M91: =L91 -> 4.5 | N91: =L91*Preu_vedella*0.83 -> 5443.7625 | O91: =(J91-C91)*Preu_vedella*0.83 -> -6048.625
B92: >27 meses | C92: 0 | D92: =IF(C93="","",C92/C93) -> 0 | E92: ___________________________________________________________________________________________________ | I92: >27 meses | J92: 1 | K92: =IF(J93="","",J92/J93) -> 0.01315789474 | L92: 0.5 | M92: =L92 -> 0.5 | N92: =L92*Preu_vedella*0.67 -> 488.2625 | O92: =(J92-C92)*Preu_vedella*0.67 -> 976.525
B93: Total terneras | C93: =SUM(C83:C92) -> 88 | D93: =SUM(D83:D92) -> 1 | E93: ___________________________________________________________________________________________________ | I93: Total terneras | J93: =SUM(J83:J92) -> 76 | K93: =SUM(K83:K92) -> 1 | L93: 82 | M93: =SUM(M83:M92) -> 46.5 | N93: =SUM(N83:N92) -> 69216.675 | O93: =SUM(O83:O92) -> -11995.225
B94: Sementales | C94: Inventario inicio | J94: Inventario final
B96: Edad | C96: Nº toros | D96: % | I96: Edad | J96: Nº toros | K96: % | L96: Media | M96: UGM | N96: Capital animal | O96: Valor cambio inventario
B97: <2 años | C97: 0 | D97: =IF(C100=0,0,C97/C100) -> 0 | E97: ____________________________________________________________________________________________________ | I97: <2 años | J97: 0 | K97: =IF($J$100=0,0,J97/$J$100) -> 0 | L97: =(C97+J97)/2 -> 0 | M97: =L97*0.6 -> 0
B98: 2 a 5 años | C98: 1 | D98: =IF(C100=0,0,C98/C100) -> 1 | E98: ____________________________________________________________________________________________________ | I98: 2 a 5 años | J98: 1 | K98: =IF($J$100=0,0,J98/$J$100) -> 1 | L98: =(C98+J98)/2 -> 1 | M98: =L98*1 -> 1
B99: >5 años | C99: 0 | D99: =IF(C100=0,0,C99/C100) -> 0 | E99: ____________________________________________________________________________________________________ | I99: >5 años | J99: 0 | K99: =IF($J$100=0,0,J99/$J$100) -> 0 | L99: =(C99+J99)/2 -> 0 | M99: =L99*1 -> 0
B100: Total | C100: =SUM(C97:C99) -> 1 | D100: =SUM(D97:D99) -> 1 | E100: ____________________________________________________________________________________________________ | I100: Total | J100: =SUM(J97:J99) -> 1 | K100: =SUM(K97:K99) -> 1 | L100: =(C100+J100)/2 -> 1 | M100: =SUM(M97:M99) -> 1 | N100: =M100*Preu_Vaca -> 1325 | O100: =(J100-C100)*Preu_Vaca -> 0
E101: % reposición | G101: % eliminación | H101: Tendencia
B102: Número medio de vacas | C102: =(J74+C74)/2 -> 116 | E102: =(E74+F74)/C102 -> 0.2155172414 | G102: =(G74+H74+I74)/C102 -> 0.1810344828 | H102: =IF((E102-G102)>0,"Crecimiento","Decrecimiento") -> Crecimiento | I102: =(J74-C74)/C74 -> 0.09009009009
B107: Consum d'ingredients per a l'alimentació
B109: Forrajes | C109: Inventario inicio | E109: Compras | H109: Ventas | K109: Producción | N109: Inventario final | P109: Consumo | S109: Inventario | U109: Precios
E110: Durante todo el año | H110: Durante todo el año | K110: Durante todo el año
C111: Cantidad, kg | D111: % MS | E111: Compras, cantidad en kg | F111: % MS | G111: Importe compras | H111: Ventas, cantidad en kg | I111: % MS | J111: Importe ventas | K111: Producción en kg | L111: % MS | M111: Coste de producción | N111: Cantidad, kg | O111: % MS | P111: Consumo, kg | Q111: % MS | S111: Variación inventario | T111: % MS | U111: Precio compras | V111: Precio ventas | W111: Precio medio
B112: Ensilado sorgo | C112: 90000 | D112: 0.3 | K112: 500000 | L112: 0.3 | M112: 0.024 | N112: 405000 | O112: 0.3 | P112: =IF(B112="","",IF((C112+E112-H112+K112-N112)<0,"Revisar dades",C112+E112-H112+K112-N112)) -> 185000 | Q112: =IF(P112="","",IF(COUNT(C112,E112,H112,K112,N112)=COUNT(D112,F112,I112,L112,O112),(C112*D112+E112*F112+H112*I112+K112*L112+N112*O112)/(C112+E112+H112+K112+N112),"")) -> 0.3 | R112: =IF(P112="","",IF(Q112="","% MS?","")) ->  | S112: =IF(B112="","",N112-C112) -> 315000 | T112: =IF(S112=0,"",IF(S112="","",(C112*D112+N112*O112)/(C112+N112))) -> 0.3 | U112: =IF(G112="","",G112/E112) ->  | V112: =IF(H112="","",J112/H112) ->  | W112: =IF(B112="","",SUM(Y112:AA112)) -> 0.024 | X112: =E112+H112+K112 -> 500000 | Y112: =IF(U112="","",U112*(E112/X112)) ->  | Z112: =IF(V112="","",V112*(H112/(X112))) ->  | AA112: =IF(M112="","",M112*(K112/(X112))) -> 0.024
B113: Heno raigrás | C113: 120000 | D113: 0.28 | K113: 500000 | L113: 0.28 | M113: 0.03 | N113: 120000 | O113: 0.28 | P113: =IF(B113="","",IF((C113+E113-H113+K113-N113)<0,"Revisar dades",C113+E113-H113+K113-N113)) -> 500000 | Q113: =IF(P113="","",IF(COUNT(C113,E113,H113,K113,N113)=COUNT(D113,F113,I113,L113,O113),(C113*D113+E113*F113+H113*I113+K113*L113+N113*O113)/(C113+E113+H113+K113+N113),"")) -> 0.28 | R113: =IF(P113="","",IF(Q113="","% MS?","")) ->  | S113: =IF(B113="","",N113-C113) -> 0 | T113: =IF(S113=0,"",IF(S113="","",(C113*D113+N113*O113)/(C113+N113))) ->  | U113: =IF(G113="","",G113/E113) ->  | V113: =IF(H113="","",J113/H113) ->  | W113: =IF(B113="","",SUM(Y113:AA113)) -> 0.03 | X113: 500000 | AA113: 0.03
B114: Ensilado raigrás | K114: 80000 | L114: 0.88 | M114: 0.1 | N114: 67800 | O114: 0.88 | P114: 12200 | Q114: 0.88 | S114: 67800 | T114: 0.88 | W114: 0.1 | X114: 80000 | AA114: 0.1
B115: Avena en flor, heno | C115: 26400 | D115: 0.88 | K115: 90000 | L115: 0.88 | M115: 0.12 | N115: 71550 | O115: 0.88 | P115: 44850 | Q115: 0.88 | S115: 45150 | T115: 0.88 | W115: 0.12 | X115: 90000 | AA115: 0.12
B116: Heno de alfalfa | C116: 67400 | D116: 0.88 | K116: 100000 | L116: 0.88 | M116: 0.1 | N116: 97200 | O116: 0.88 | P116: 70200 | Q116: 0.88 | S116: 29800 | T116: 0.88 | W116: 0.1 | X116: 100000 | AA116: 0.1
X117: 0
X118: 0
P119: =IF(B119="","",IF((C119+E119-H119+K119-N119)<0,"Revisar dades",C119+E119-H119+K119-N119)) ->  | Q119: =IF(P119="","",IF(COUNT(C119,E119,H119,K119,N119)=COUNT(D119,F119,I119,L119,O119),(C119*D119+E119*F119+H119*I119+K119*L119+N119*O119)/(C119+E119+H119+K119+N119),"")) ->  | R119: =IF(P119="","",IF(Q119="","% MS?","")) ->  | S119: =IF(B119="","",N119-C119) ->  | T119: =IF(S119=0,"",IF(S119="","",(C119*D119+N119*O119)/(C119+N119))) ->  | U119: =IF(G119="","",G119/E119) ->  | V119: =IF(H119="","",J119/H119) ->  | W119: =IF(B119="","",SUM(Y119:AA119)) ->  | X119: =E119+H119+K119 -> 0 | Y119: =IF(U119="","",U119*(E119/X119)) ->  | Z119: =IF(V119="","",V119*(H119/(X119))) ->  | AA119: =IF(M119="","",M119*(K119/(X119))) -> 
P120: =IF(B120="","",IF((C120+E120-H120+K120-N120)<0,"Revisar dades",C120+E120-H120+K120-N120)) ->  | Q120: =IF(P120="","",IF(COUNT(C120,E120,H120,K120,N120)=COUNT(D120,F120,I120,L120,O120),(C120*D120+E120*F120+H120*I120+K120*L120+N120*O120)/(C120+E120+H120+K120+N120),"")) ->  | R120: =IF(P120="","",IF(Q120="","% MS?","")) ->  | S120: =IF(B120="","",N120-C120) ->  | T120: =IF(S120=0,"",IF(S120="","",(C120*D120+N120*O120)/(C120+N120))) ->  | U120: =IF(G120="","",G120/E120) ->  | V120: =IF(H120="","",J120/H120) ->  | W120: =IF(B120="","",SUM(Y120:AA120)) ->  | X120: =E120+H120+K120 -> 0 | Y120: =IF(U120="","",U120*(E120/X120)) ->  | Z120: =IF(V120="","",V120*(H120/(X120))) ->  | AA120: =IF(M120="","",M120*(K120/(X120))) -> 
P121: =IF(B121="","",IF((C121+E121-H121+K121-N121)<0,"Revisar dades",C121+E121-H121+K121-N121)) ->  | Q121: =IF(P121="","",IF(COUNT(C121,E121,H121,K121,N121)=COUNT(D121,F121,I121,L121,O121),(C121*D121+E121*F121+H121*I121+K121*L121+N121*O121)/(C121+E121+H121+K121+N121),"")) ->  | R121: =IF(P121="","",IF(Q121="","% MS?","")) ->  | S121: =IF(B121="","",N121-C121) ->  | T121: =IF(S121=0,"",IF(S121="","",(C121*D121+N121*O121)/(C121+N121))) ->  | U121: =IF(G121="","",G121/E121) ->  | V121: =IF(H121="","",J121/H121) ->  | W121: =IF(B121="","",SUM(Y121:AA121)) ->  | X121: =E121+H121+K121 -> 0 | Y121: =IF(U121="","",U121*(E121/X121)) ->  | Z121: =IF(V121="","",V121*(H121/(X121))) ->  | AA121: =IF(M121="","",M121*(K121/(X121))) -> 
P122: =IF(B122="","",IF((C122+E122-H122+K122-N122)<0,"Revisar dades",C122+E122-H122+K122-N122)) ->  | Q122: =IF(P122="","",IF(COUNT(C122,E122,H122,K122,N122)=COUNT(D122,F122,I122,L122,O122),(C122*D122+E122*F122+H122*I122+K122*L122+N122*O122)/(C122+E122+H122+K122+N122),"")) ->  | R122: =IF(P122="","",IF(Q122="","% MS?","")) ->  | S122: =IF(B122="","",N122-C122) ->  | T122: =IF(S122=0,"",IF(S122="","",(C122*D122+N122*O122)/(C122+N122))) ->  | U122: =IF(G122="","",G122/E122) ->  | V122: =IF(H122="","",J122/H122) ->  | W122: =IF(B122="","",SUM(Y122:AA122)) ->  | X122: =E122+H122+K122 -> 0 | Y122: =IF(U122="","",U122*(E122/X122)) ->  | Z122: =IF(V122="","",V122*(H122/(X122))) ->  | AA122: =IF(M122="","",M122*(K122/(X122))) -> 
P123: =IF(B123="","",IF((C123+E123-H123+K123-N123)<0,"Revisar dades",C123+E123-H123+K123-N123)) ->  | Q123: =IF(P123="","",IF(COUNT(C123,E123,H123,K123,N123)=COUNT(D123,F123,I123,L123,O123),(C123*D123+E123*F123+H123*I123+K123*L123+N123*O123)/(C123+E123+H123+K123+N123),"")) ->  | R123: =IF(P123="","",IF(Q123="","% MS?","")) ->  | S123: =IF(B123="","",N123-C123) ->  | T123: =IF(S123=0,"",IF(S123="","",(C123*D123+N123*O123)/(C123+N123))) ->  | U123: =IF(G123="","",G123/E123) ->  | V123: =IF(H123="","",J123/H123) ->  | W123: =IF(B123="","",SUM(Y123:AA123)) ->  | X123: =E123+H123+K123 -> 0 | Y123: =IF(U123="","",U123*(E123/X123)) ->  | Z123: =IF(V123="","",V123*(H123/(X123))) ->  | AA123: =IF(M123="","",M123*(K123/(X123))) -> 
F124: Total compras | G124: =SUM(G112:G123) -> 0 | I124: Total ventas | J124: =SUM(J112:J123) -> 0 | P124: Total valor variación inventario | S124: =SUMPRODUCT(S112:S123,W112:W123) -> 22738
C125: Inventario inicio | E125: Compras | H125: Ventas | K125: Producción | N125: Inventario final
E126: Durante todo el año | H126: Durante todo el año | K126: Durante todo el año
B127: Concentrados, subproductos y aditivos, a vacas | C127: Cantidad, kg | D127: % MS | E127: Compras, cantidad en kg | F127: % MS | G127: Importe compras | H127: Ventas, cantidad en kg | I127: % MS | J127: Importe ventas | K127: Producción en kg | L127: % MS | M127: Coste de producción | N127: Cantidad, kg | O127: % MS | P127: Consumo, kg | Q127: % MS | S127: Variación inventario | T127: % MS | U127: Precio compras | V127: Precio ventas | W127: Precio medio
B128: Total | C128: 45 | D128: 0.88 | E128: 524584.6 | F128: 0.88 | G128: 152821.8 | P128: =IF(B128="","",IF((C128+E128-H128+K128-N128)<0,"Revisar dades",C128+E128-H128+K128-N128)) -> 524629.6 | Q128: =IF(P128="","",IF(COUNT(C128,E128,H128,K128,N128)=COUNT(D128,F128,I128,L128,O128),(C128*D128+E128*F128+H128*I128+K128*L128+N128*O128)/(C128+E128+H128+K128+N128),"")) -> 0.88 | R128: =IF(P128="","",IF(Q128="","% MS?","")) ->  | S128: =IF(B128="","",N128-C128) -> -45 | T128: =IF(S128=0,"",IF(S128="","",(C128*D128+N128*O128)/(C128+N128))) -> 0.88 | U128: =IF(G128="","",G128/E128) -> 0.2913196461 | V128: =IF(H128="","",J128/H128) ->  | W128: =IF(B128="","",SUM(Y128:AA128)) -> 0.2913196461 | X128: =E128+H128+K128 -> 524584.6 | Y128: =IF(U128="","",U128*(E128/X128)) -> 0.2913196461 | Z128: =IF(V128="","",V128*(H128/(X128))) ->  | AA128: =IF(M128="","",M128*(K128/(X128))) -> 
P129: =IF(B129="","",IF((C129+E129-H129+K129-N129)<0,"Revisar dades",C129+E129-H129+K129-N129)) ->  | Q129: =IF(P129="","",IF(COUNT(C129,E129,H129,K129,N129)=COUNT(D129,F129,I129,L129,O129),(C129*D129+E129*F129+H129*I129+K129*L129+N129*O129)/(C129+E129+H129+K129+N129),"")) ->  | R129: =IF(P129="","",IF(Q129="","% MS?","")) ->  | S129: =IF(B129="","",N129-C129) ->  | U129: =IF(G129="","",G129/E129) ->  | V129: =IF(H129="","",J129/H129) ->  | W129: =IF(B129="","",SUM(Y129:AA129)) ->  | X129: =E129+H129+K129 -> 0 | Y129: =IF(U129="","",U129*(E129/X129)) ->  | Z129: =IF(V129="","",V129*(H129/(X129))) ->  | AA129: =IF(M129="","",M129*(K129/(X129))) -> 
X130: 0
X131: 0
X132: 0
X133: 0
X134: 0
X135: 0
X136: 0
X137: 0
X138: 0
X139: 0
X140: 0
X141: 0
T142: =IF(S142="","",(C142*D142+N142*O142)/(C142+N142)) ->  | X142: 0
F143: Total compras | G143: =SUM(G128:G142) -> 152821.8 | I143: Total ventas | J143: =SUM(J128:J142) -> 0 | P143: =SUMPRODUCT(P128:P142,Q128:Q142) -> 461674.048 | Q143: =IF(P143=0,"",P143/SUM(P128:P142)) -> 0.88 | S143: =SUMPRODUCT(S128:S142,W128:W142) -> -13.10938407
C144: Inventario inicio | E144: Compras | H144: Ventas | K144: Producción | N144: Inventario final
E145: Durante todo el año | H145: Durante todo el año | K145: Durante todo el año
B146: Concentrados, subproductos y aditivos, a recría | C146: Cantidad, kg | D146: % MS | E146: Compras, cantidad en kg | F146: % MS | G146: Importe compras | H146: Ventas, cantidad en kg | I146: % MS | J146: Importe ventas | K146: Producción en kg | L146: % MS | M146: Coste de producción | N146: Cantidad, kg | O146: % MS | P146: Consumo, kg (l leche) | Q146: % MS | S146: Variación inventario | T146: % MS | U146: Precio compras | V146: Precio ventas | W146: Precio medio
P147: =IF(B147="","",IF((C147+E147-H147+K147-N147)<0,"Revisar dades",C147+E147-H147+K147-N147)) ->  | Q147: =IF(P147="","",IF(COUNT(C147,E147,H147,K147,N147)=COUNT(D147,F147,I147,L147,O147),(C147*D147+E147*F147+H147*I147+K147*L147+N147*O147)/(C147+E147+H147+K147+N147),"")) ->  | R147: =IF(P147="","",IF(Q147="","% MS?","")) ->  | S147: =IF(B147="","",N147-C147) ->  | T147: =IF(S147=0,"",IF(S147="","",(C147*D147+N147*O147)/(C147+N147))) ->  | U147: =IF(G147="","",G147/E147) ->  | V147: =IF(H147="","",J147/H147) ->  | W147: =IF(B147="","",SUM(Y147:AA147)) ->  | X147: =E147+H147+K147 -> 0 | Y147: =IF(U147="","",U147*(E147/X147)) ->  | Z147: =IF(V147="","",V147*(H147/(X147))) ->  | AA147: =IF(M147="","",M147*(K147/(X147))) -> 
P148: =IF(B148="","",IF((C148+E148-H148+K148-N148)<0,"Revisar dades",C148+E148-H148+K148-N148)) ->  | Q148: =IF(P148="","",IF(COUNT(C148,E148,H148,K148,N148)=COUNT(D148,F148,I148,L148,O148),(C148*D148+E148*F148+H148*I148+K148*L148+N148*O148)/(C148+E148+H148+K148+N148),"")) ->  | R148: =IF(P148="","",IF(Q148="","% MS?","")) ->  | S148: =IF(B148="","",N148-C148) ->  | T148: =IF(S148=0,"",IF(S148="","",(C148*D148+N148*O148)/(C148+N148))) ->  | U148: =IF(G148="","",G148/E148) ->  | V148: =IF(H148="","",J148/H148) ->  | W148: =IF(B148="","",SUM(Y148:AA148)) ->  | X148: =E148+H148+K148 -> 0 | Y148: =IF(U148="","",U148*(E148/X148)) ->  | Z148: =IF(V148="","",V148*(H148/(X148))) ->  | AA148: =IF(M148="","",M148*(K148/(X148))) -> 
P149: =IF(B149="","",IF((C149+E149-H149+K149-N149)<0,"Revisar dades",C149+E149-H149+K149-N149)) ->  | Q149: =IF(P149="","",IF(COUNT(C149,E149,H149,K149,N149)=COUNT(D149,F149,I149,L149,O149),(C149*D149+E149*F149+H149*I149+K149*L149+N149*O149)/(C149+E149+H149+K149+N149),"")) ->  | R149: =IF(P149="","",IF(Q149="","% MS?","")) ->  | S149: =IF(B149="","",N149-C149) ->  | T149: =IF(S149=0,"",IF(S149="","",(C149*D149+N149*O149)/(C149+N149))) ->  | U149: =IF(G149="","",G149/E149) ->  | V149: =IF(H149="","",J149/H149) ->  | W149: =IF(B149="","",SUM(Y149:AA149)) ->  | X149: =E149+H149+K149 -> 0 | Y149: =IF(U149="","",U149*(E149/X149)) ->  | Z149: =IF(V149="","",V149*(H149/(X149))) ->  | AA149: =IF(M149="","",M149*(K149/(X149))) -> 
P150: =IF(B150="","",IF((C150+E150-H150+K150-N150)<0,"Revisar dades",C150+E150-H150+K150-N150)) ->  | Q150: =IF(P150="","",IF(COUNT(C150,E150,H150,K150,N150)=COUNT(D150,F150,I150,L150,O150),(C150*D150+E150*F150+H150*I150+K150*L150+N150*O150)/(C150+E150+H150+K150+N150),"")) ->  | R150: =IF(P150="","",IF(Q150="","% MS?","")) ->  | S150: =IF(B150="","",N150-C150) ->  | T150: =IF(S150=0,"",IF(S150="","",(C150*D150+N150*O150)/(C150+N150))) ->  | U150: =IF(G150="","",G150/E150) ->  | V150: =IF(H150="","",J150/H150) ->  | W150: =IF(B150="","",SUM(Y150:AA150)) ->  | X150: =E150+H150+K150 -> 0 | Y150: =IF(U150="","",U150*(E150/X150)) ->  | Z150: =IF(V150="","",V150*(H150/(X150))) ->  | AA150: =IF(M150="","",M150*(K150/(X150))) -> 
X151: 0
X152: 0
X153: 0
X154: 0
X155: 0
X156: =E156+H156+K156 -> 0 | Y156: =IF(U156="","",U156*(E156/X156)) ->  | Z156: =IF(V156="","",V156*(H156/(X156))) ->  | AA156: =IF(M156="","",M156*(K156/(X156))) -> 
F157: Total compras | G157: =SUM(G147:G156) -> 0 | I157: Total ventas | J157: =SUM(J147:J156) -> 0 | P157: =SUMPRODUCT(P148:P156,Q148:Q156) -> 0 | Q157: =IF(P157=0,"",P157/SUM(P148:P156)) ->  | S157: =SUMPRODUCT(S148:S156,W148:W156) -> 0
B158: Las terneras Sí consumen leche natural | C158: =IF(B158="Las terneras Sí consumen leche natural","-----------------------Si sabes la cantidad anual consignala en la casilla siguiente ------------------------------------------------------------------->","") -> -----------------------Si sabes la cantidad anual consignala en la casilla siguiente -------------------------------------------------------------------> | P158: =IF(C158="","",IF(K158="","",K158)) -> 
B159: Mano de obra no eventual
B160: Mano de obra familiar actividad vacas leche | C160: Días/año | D160: Horas/día | E160: Si tiene asignado un salario €/año | F160: UTA | G160: Horas anuales declaradas | H160: N. Personas
B162: Pedro | C162: 355 | D162: 9 | E162: 25000 | F162: =IF(C162*D162>1920,1,(C162*D162)/1920) -> 1 | G162: =C162*D162 -> 3195 | H162: =IF(F162>0,1,"") -> 1
B163: Jaime | C163: 300 | D163: 8 | E163: 35000 | F163: =IF(C163*D163>1920,1,(C163*D163)/1920) -> 1 | G163: =C163*D163 -> 2400 | H163: 1
F164: =IF(C164*D164>1920,1,(C164*D164)/1920) -> 0 | G164: =C164*D164 -> 0
F165: 0 | G165: 0
F166: 0 | G166: 0
F167: 0 | G167: 0
B168: Totales familiar | F168: =SUM(F162:F167) -> 2 | G168: =SUM(G162:G167) -> 5595 | H168: =SUM(H162:H167) -> 2
B169: Mano de obra contratada para vacas de leche | C169: Días/año | D169: Horas/día | E169: €/hora | F169: UTA | G169: Horas anuales declaradas | H169: N. Personas | I169: Cálculo sueldo anual
B171: Francisco | C171: 300 | D171: 9 | E171: 10 | F171: =IF(C171*D171>1920,1,(C171*D171)/1920) -> 1 | G171: =C171*D171 -> 2700 | H171: =IF(F171>0,1,"") -> 1 | I171: =IF(J171="",IF(F171>0,IF(E171="","",G171*E171),""),J171) -> 27000
F172: 0 | G172: 0 | I172: =IF(J172="",IF(F172>0,IF(E172="","",G172*E172),""),J172) -> 
F173: 0 | G173: 0
F174: 0 | G174: 0
F175: 0 | G175: 0
F176: 0 | G176: 0
B177: Totals contractada | F177: =SUM(F171:F176) -> 1 | G177: =SUM(G171:G176) -> 2700 | H177: =SUM(H171:H176) -> 1
B178: Total mà d'obra | F178: =F168+F177 -> 3 | H178: =H168+H177 -> 3 | I178: =SUM(I171:I176) -> 27000 | J178: =SUM(J171:J176) -> 0
B179: Edificios, maquinaria e instalaciones
B180: Maquinaria | H180: Edificios
B181: Tipos, nombre... | C181: Año | D181: Valor Compra | E181: Capital amortizado | F181: Amortización anual | G181: Capital actual | H181: Tipos | I181: Superfície m2 | J181: Año | K181: Coste construcción | L181: Capital amortizado | M181: Amortización anual | N181: Capital actual
B183: Bañera Gili 12 Tm | C183: 2003 | D183: 9766.37 | E183: =IF(A_Enc-C183<AA_Maq,D183-G183,D183) -> 9766.37 | F183: =IF(A_Enc-C183<AA_Maq,D183*0.9/AA_Maq,0) -> 0 | G183: =IF(A_Enc-C183<AA_Maq,D183*(1-0.9*(A_Enc-C183)/AA_Maq),D183*0.1) -> 976.637 | H183: Estercolero 700 m2 | J183: 2001 | K183: 25916.84 | L183: =IF(A_Enc-J183<AA_Edif,K183-N183,K183) -> 25916.84 | M183: =IF(A_Enc-J183<AA_Edif,K183*0.95/AA_Edif,0) -> 0 | N183: =IF(A_Enc-J183<AA_Edif,K183-((K183/AA_Edif)*(A_Enc-J183)),K183*0.05) -> 1295.842
B184: John Deere 6820 | C184: 2004 | D184: 52586.2 | E184: 52586.2 | F184: 0 | G184: 5258.62 | H184: 3 Silos prefabricados | J184: 2002 | K184: 31999.8 | L184: 30399.81 | M184: 1519.9905 | N184: 1599.99
B185: Compar RBT-600 | C185: 2005 | D185: 21721.27 | E185: 21721.27 | F185: 0 | G185: 2172.127 | H185: Nave de terneras y pavimentación caminos explotación | J185: 2002 | K185: 55630.74 | L185: 52849.203 | M185: 2642.46015 | N185: 2781.537
B186: Rampí krone 4m | C186: 2005 | D186: 3879 | E186: 3879 | F186: 0 | G186: 387.9 | H186: A | J186: 2010 | K186: 74194.49 | L186: 40806.9695 | M186: 3524.238275 | N186: 33387.5205
B187: Sembradora 3m amazone | C187: 2008 | D187: 9210.37 | E187: 9210.37 | F187: 0 | G187: 921.037 | H187: B | J187: 2011 | K187: 20265 | L187: 10132.5 | M187: 962.5875 | N187: 10132.5
B188: Pala | C188: 2011 | D188: 1074 | E188: 1074 | F188: 0 | G188: 107.4 | H188: C | J188: 2012 | K188: 17051.6 | L188: 7673.22 | M188: 809.951 | N188: 9378.38
B189: Tractor John deere 6430 con pala delantera | C189: 2012 | D189: 60000 | E189: 48600 | F189: 5400 | G189: 11400 | H189: D | J189: 2013 | K189: 54260 | L189: 21704 | M189: 2577.35 | N189: 32556
E190: 0 | F190: 0 | G190: 0 | L190: 0 | M190: 0 | N190: 0
E191: 0 | F191: 0 | G191: 0 | L191: 0 | M191: 0 | N191: 0
E192: 0 | F192: 0 | G192: 0 | J192: Total | K192: =SUM(K183:K188) -> 225058.47 | L192: =SUM(L183:L191) -> 189482.5425 | M192: =SUM(M183:M191) -> 12036.57742 | N192: =SUM(N183:N188) -> 58575.7695
E193: 0 | F193: 0 | G193: 0 | H193: Equipo de ordeño y frio (instalaciones) | L193: Capital amortizado | M193: Amortización anual | N193: Capital actual
E194: 0 | F194: 0 | G194: 0 | H194: Maquinaria | I194: Puestos | J194: Año | K194: Valor de compra
E195: 0 | F195: 0 | G195: 0 | H195: Maquina ordeño | J195: 2010 | K195: =92034.3-18500 -> 73534.3 | L195: =IF(A_Enc-J195<AA_Frio,K195-N195,K195) -> 73534.3 | M195: =IF(A_Enc-J195<AA_Frio,K195*0.9/AA_Frio,0) -> 0 | N195: =IF(A_Enc-J195<AA_Frio,K195-((K195/AA_Frio)*(A_Enc-J195)),K195*0.1) -> 7353.43
E196: 0 | F196: 0 | G196: 0 | H196: A | J196: 2011 | K196: 3389.01 | L196: =IF(A_Enc-J196<AA_Frio,K196-N196,K196) -> 3389.01 | M196: =IF(A_Enc-J196<AA_Frio,K196*0.9/AA_Frio,0) -> 0 | N196: =IF(A_Enc-J196<AA_Frio,K196-((K196/AA_Frio)*(A_Enc-J196)),K196*0.1) -> 338.901
E197: 0 | F197: 0 | G197: 0 | H197: B | J197: 2012 | K197: 14095 | L197: =IF(A_Enc-J197<AA_Frio,K197-N197,K197) -> 12685.5 | M197: =IF(A_Enc-J197<AA_Frio,K197*0.9/AA_Frio,0) -> 1268.55 | N197: =IF(A_Enc-J197<AA_Frio,K197-((K197/AA_Frio)*(A_Enc-J197)),K197*0.1) -> 1409.5
E198: 0 | F198: 0 | G198: 0 | H198: C | J198: 2013 | K198: 54071.91 | L198: =IF(A_Enc-J198<AA_Frio,K198-N198,K198) -> 43257.528 | M198: =IF(A_Enc-J198<AA_Frio,K198*0.9/AA_Frio,0) -> 4866.4719 | N198: =IF(A_Enc-J198<AA_Frio,K198-((K198/AA_Frio)*(A_Enc-J198)),K198*0.1) -> 10814.382
E199: 0 | F199: 0 | G199: 0 | H199: Frio | I199: Litros | J199: Año | K199: Valor de compra | L199: =SUM(L195:L198) -> 132866.338 | M199: =SUM(M195:M198) -> 6135.0219 | N199: =SUM(N195:N198) -> 19916.213
E200: 0 | F200: 0 | G200: 0 | H200: Tanque leche | J200: 2010 | K200: 18500 | L200: =IF(A_Enc-J200<AA_Frio,K200-N200,K200) -> 18500 | M200: =IF(A_Enc-J200<AA_Frio,K200*0.9/AA_Frio,0) -> 0 | N200: =IF(A_Enc-J200<AA_Frio,K200-((K200/AA_Frio)*(A_Enc-J200)),K200*0.1) -> 1850
E201: 0 | F201: 0 | G201: 0 | L201: =IF(A_Enc-J201<AA_Frio,K201-N201,K201) -> 0 | M201: =IF(A_Enc-J201<AA_Frio,K201*0.9/AA_Frio,0) -> 0 | N201: =IF(A_Enc-J201<AA_Frio,K201-((K201/AA_Frio)*(A_Enc-J201)),K201*0.1) -> 0
C202: Total | D202: =SUM(D183:D201) -> 158237.21 | E202: =SUM(E183:E201) -> 146837.21 | F202: =SUM(F183:F201) -> 5400 | G202: =SUM(G183:G201) -> 21223.721 | L202: =IF(A_Enc-J202<AA_Frio,K202-N202,K202) -> 0 | M202: =IF(A_Enc-J202<AA_Frio,K202*0.9/AA_Frio,0) -> 0 | N202: =IF(A_Enc-J202<AA_Frio,K202-((K202/AA_Frio)*(A_Enc-J202)),K202*0.1) -> 0
J203: Total | K203: =SUM(K195:K202) -> 163590.22 | L203: =SUM(L200:L202)+L199 -> 151366.338 | M203: =SUM(M200:M202)+M199 -> 6135.0219 | N203: =SUM(N200:N202)+N199 -> 21766.213
B204: Gastos anuales vacuno de leche no consignadas anteriormente
B205: Costes variables | E205: Costes fijos
B206: Carburantes y lubricantes | C206: 20384.14 | E206: Coservación y reparación maquinaria | F206: 13569.64
B207: Alquiler maquinaria | C207: 31486.79 | E207: Conservación y reparación edificios | F207: 1992.22
B208: Veterinario | C208: 9197.84 | E208: Contribuciones / impuestos | F208: 416.84
B209: Medicinas y productos veterinarios | C209: 6027.26 | E209: Intereses prestamos y comisiones | F209: 8970.3
B210: Lecho / camas | C210: 11409.19 | E210: Asesorías y servicios técnicos | F210: 0
B211: Material diverso | C211: 4224.23 | E211: Seguridad social familiar | F211: 8598.66
B212: Luz | C212: 6959.82 | E212: Arrendamiento suelo agrícola | F212: 9325
B213: Teléfono | C213: 0 | E213: Arrendamiento edificios | F213: 4200
B214: Detergentes y desinfectantes | C214: 3027.12 | E214: Otros arrendamientos | F214: 1260
B215: Consumo agua | C215: 4489.25 | E215: Seguros vacas | F215: 5757.03
B216: Inseminaciones | C216: 3166.4 | E216: Seguros maquinaria | F216: 775.95
B217: Sueldos eventuales (incluida SS) | C217: 0 | E217: Seguros edificios | F217: 1159.72
E218: Seguros cosechas | F218: 0
E219: Control lechero | F219: 1378.35
E220: Administración y gestoría | F220: 1542.32
E221: Seguros diversos | F221: 329.72
B227: Ingresos de la leche y otros
B228: Destino de la leche | F228: Otros ingresos
B229: Concepto | C229: L | D229: €/l | E229: Total € | F229: Concepto | G229: Total €
B230: Venta leche | C230: 1007718 | D230: =0.340971670645955 -> 0.3409716706 | E230: =C230*D230 -> 343603.29 | F230: Venta estiércol | G230: 0
B231: Venta al detalle | E231: 0 | F231: Subvenciones | G231: 65541.849
E232: 0 | F232: Indemnizaciones | G232: 0
E233: 0
E234: 0
... 52 more rows

Sheet ResultadosTécnicosEconómicos
B1: concepte | C1: Valores
B3: C.autonoma | C3: =EntradaDatosExplotación!F23 -> AAAAA
B4: Nom o nombre explotació | C4: =EntradaDatosExplotación!H26 -> dddd
B5: Província | C5: =EntradaDatosExplotación!F26 -> BBB
B6: Comarca | C6: =EntradaDatosExplotación!D26 -> BB
B7: Municipio | C7: =EntradaDatosExplotación!B26 -> B
B8: Control lechero | C8: =EntradaDatosExplotación!H27 -> Sí
A9: ST | B9: Has totales | C9: =IF(EntradaDatosExplotación!H32="","-",EntradaDatosExplotación!H32) -> 75
B10: % Sup propia | C10: =IF(EntradaDatosExplotación!H32=0,0,(EntradaDatosExplotación!B32+EntradaDatosExplotación!C32)/(EntradaDatosExplotación!H32)) -> 1
A11: SF | B11: Has de forrajes | C11: =EntradaDatosExplotación!E37+EntradaDatosExplotación!F37 -> 75
A12: Sleche | B12: Has a leche | C12: =SUM(C11:C11) -> 75
B13: % regadio | C13: =EntradaDatosExplotación!F51/EntradaDatosExplotación!G51 -> 0.3333333333
A14: Vi | B14: vacas inicio | C14: =EntradaDatosExplotación!C74 -> 111
A15: Vf | B15: vacas final | C15: =EntradaDatosExplotación!J74 -> 121
A16: VM | B16: Nº vacas media | C16: =EntradaDatosExplotación!L74 -> 116
B17: % primer parto | C17: =EntradaDatosExplotación!M71 -> 0.349137931
B18: % secas | C18: =EntradaDatosExplotación!M75 -> 0.0775862069
A19: Tendencia | B19: tendencia: (v2-v1)*100/v1 | C19: =EntradaDatosExplotación!I102 -> 0.09009009009
A20: UGM | B20: UGM media | C20: =EntradaDatosExplotación!N74+EntradaDatosExplotación!M93+EntradaDatosExplotación!M100 -> 163.5
A21: UTA | B21: Uta_totales | C21: =EntradaDatosExplotación!F178 -> 3
A22: UTAf | B22: Uta_familiar | C22: =EntradaDatosExplotación!F168 -> 2
A23: UTAa | B23: Uta_Asalariada | C23: =UTA-UTAf -> 1
A24: Pfij | B24: Personas fijas totales | C24: =EntradaDatosExplotación!H178 -> 3
A25: Pfijf | B25: Personas fijas familiares | C25: =EntradaDatosExplotación!H168 -> 2
A26: Horasf | B26: horas familiares declaradas | C26: =EntradaDatosExplotación!G168 -> 5595
A27: HorasAs | B27: horas asal total | C27: =EntradaDatosExplotación!G177 -> 2700
A28: CapT | B28: Capital Total | C28: =SUM(C29:C33) -> 327312.5685
A29: CapE | B29: Capital edificios | C29: =EntradaDatosExplotación!N192 -> 58575.7695
A30: CapM | B30: Capital maquinaria | C30: =EntradaDatosExplotación!G202 -> 21223.721
A31: CapI | B31: Capital instalaciones ordeño y frio | C31: =EntradaDatosExplotación!N203 -> 21766.213
A32: CapG | B32: Capital ganado | C32: =IF(EntradaDatosExplotación!N93>0,EntradaDatosExplotación!O74+EntradaDatosExplotación!N93+EntradaDatosExplotación!N100,EntradaDatosExplotación!O74+EntradaDatosExplotación!O78+EntradaDatosExplotación!N100) -> 201716.675
A33: CapC | B33: Capital circulante | C33: =EntradaDatosExplotación!P61+EntradaDatosExplotación!G124+EntradaDatosExplotación!C210 -> 24030.19
A34: VM_ha | B34: vacas media/ha leche | C34: =VM/Sllet -> 1.546666667
A35: UGM_ha | B35: UGM vacuno leche/ha leche | C35: =UBM/Sllet -> 2.18
A36: VM_UTA | B36: vacas media/uta totales | C36: =VM/C21 -> 38.66666667
A37: CT_VM | B37: Capital total/vacas media | C37: =CapT/VM -> 2821.660073
A38: CT_UTA | B38: Capital/uta | C38: =CapT/C21 -> 109104.1895
A39: PlVCf | B39: Leche vendida + consumo familiar | C39: =EntradaDatosExplotación!C240+EntradaDatosExplotación!C237 -> 1008813
A40: PlR | B40: Leche reempleada | C40: =EntradaDatosExplotación!C238 -> 14378
A41: PlCf | B41: Consumo familiar | C41: =IF(EntradaDatosExplotación!C236>0,EntradaDatosExplotación!C236,EntradaDatosExplotación!C237) -> 1095
A42: Pl | B42: leche producida | C42: =EntradaDatosExplotación!C239 -> 1023191
A43: Pl_VM | B43: leche producida por vaca media | C43: =Pl/VM -> 8820.612069
A44: Pienso | B44: Total de pienso, 90% MS, a vacas | C44: =EntradaDatosExplotación!P143*EntradaDatosExplotación!Q143/ResultadosTécnicosEconómicos!D44 -> 451414.6247 | D44: 0.9
A45: Pienso_VM | B45: Total de pienso de vaca por vaca media | C45: =Pinso/VM -> 3891.505385
A46: Pienso_l | B46: consumo de pienso de vaca por litro | C46: =Pinso/Pl -> 0.4411831464
A47: Precio | B47: € litro leche vendida | C47: =EntradaDatosExplotación!D240 -> 0.3413421751
A48: PrecioCo | B48: €/Kg concentrado comprado vacas | C48: =IF(F48="","",EntradaDatosExplotación!G143/ResultadosTécnicosEconómicos!F48) -> 0.3385688035 | D48: =SUMPRODUCT(EntradaDatosExplotación!E128:E142,EntradaDatosExplotación!F128:F142) -> 461634.448 | E48: =D48/SUM(EntradaDatosExplotación!E128:E142) -> 0.88 | F48: =IF(D48=0,"",D48*E48/D44) -> 451375.9047
A49: PrecioCoR | B49: €/Kg concentrado recría | C49: =IF(F49="","",EntradaDatosExplotación!G157/ResultadosTécnicosEconómicos!F49) ->  | D49: =SUMPRODUCT(EntradaDatosExplotación!E148:E156,EntradaDatosExplotación!F148:F156) -> 0 | E49: =IF(D49=0,"",D49/SUM(EntradaDatosExplotación!E148:E156)) ->  | F49: =IF(D49=0,"",D49*E49/D44) -> 
A50: Coste_ha | B50: Coste cultivos por ha | C50: =EntradaDatosExplotación!P61/Sllet -> 168.28
A51: IT | B51: Ingresos totales | C51: =SUM(C52:C60) -> 430643.0777 | D51: €
A52: Il | B52: Ingresos por leche vendida | C52: =PlVCf*Preu -> 344350.4237
A53: Itern | B53: Ingresos por venta neta de terneros | C53: =EntradaDatosExplotación!G236-EntradaDatosExplotación!G238 -> 5120
B54: Ingresos por venta neta resto animales | C54: =EntradaDatosExplotación!G235-EntradaDatosExplotación!G237 -> 15568.53
B55: =EntradaDatosExplotación!F230 -> Venta estiércol | C55: =EntradaDatosExplotación!G230 -> 0
B56: =EntradaDatosExplotación!F231 -> Subvenciones | C56: =EntradaDatosExplotación!G231 -> 65541.849
B57: =EntradaDatosExplotación!F232 -> Indemnizaciones | C57: =EntradaDatosExplotación!G232 -> 0
B58: =IF(EntradaDatosExplotación!F233="","",EntradaDatosExplotación!F233) ->  | C58: =EntradaDatosExplotación!G233 -> 0
B59: =IF(EntradaDatosExplotación!F234="","",EntradaDatosExplotación!F234) ->  | C59: =EntradaDatosExplotación!G234 -> 0
B60: Ingresos por variación de inventario animal | C60: =EntradaDatosExplotación!P74+EntradaDatosExplotación!O93+EntradaDatosExplotación!N100 -> 62.275
A61: CV | B61: Costes Variables | C61: =C62+C65+C71+C74+C75+C76+C77+C78+C79+C80+C81+C82+C83+C84+C85+C86+C87+C88+C89+C90+C91 -> 243089.9494 | D61: €
A62: Prod_comp | B62: Productos comprados para la alimentación | C62: =SUM(C63:C64) -> 152821.8
B63: Forrajes comprados | C63: =EntradaDatosExplotación!G124 -> 0
B64: Concentrados | C64: =EntradaDatosExplotación!G143+EntradaDatosExplotación!G157 -> 152821.8
B65: Costes parcelas | C65: =EntradaDatosExplotación!P61 -> 12621
B66: Semillas | C66: =EntradaDatosExplotación!P56 -> 4000
B67: Abonos | C67: =EntradaDatosExplotación!P57 -> 3200
B68: Tratamientos | C68: =EntradaDatosExplotación!P58 -> 2100
B69: Plásticos y conservantes | C69: =EntradaDatosExplotación!P59 -> 1321
B70: Otros (agua riego, etc.) | C70: =EntradaDatosExplotación!P60 -> 2000
B71: Maquinaria | C71: =C72+C73 -> 51870.93
B72: Carburantes y lubricantes | C72: =EntradaDatosExplotación!C206 -> 20384.14
B73: Alquiler maquinaria | C73: =EntradaDatosExplotación!C207 -> 31486.79
B74: Veterinario | C74: =EntradaDatosExplotación!C208 -> 9197.84
B75: Medicinas y productos veterinarios | C75: =EntradaDatosExplotación!C209 -> 6027.26
B76: Lecho / camas | C76: =EntradaDatosExplotación!C210 -> 11409.19
B77: Material diverso | C77: =EntradaDatosExplotación!C211 -> 4224.23
B78: Luz | C78: =EntradaDatosExplotación!C212 -> 6959.82
B79: Teléfono | C79: =EntradaDatosExplotación!C213 -> 0
B80: Detergentes y desinfectantes | C80: =EntradaDatosExplotación!C214 -> 3027.12
B81: Consumo agua | C81: =EntradaDatosExplotación!C215 -> 4489.25
B82: Inseminaciones | C82: =EntradaDatosExplotación!C216 -> 3166.4
B83: Sueldos eventuales (incluida SS) | C83: =EntradaDatosExplotación!C217 -> 0
B84: =IF(EntradaDatosExplotación!B218="","",EntradaDatosExplotación!B218) ->  | C84: =EntradaDatosExplotación!C218 -> 0
B85: =IF(EntradaDatosExplotación!B219="","",EntradaDatosExplotación!B219) ->  | C85: =EntradaDatosExplotación!C219 -> 0
B86: =IF(EntradaDatosExplotación!B220="","",EntradaDatosExplotación!B220) ->  | C86: =EntradaDatosExplotación!C220 -> 0
B87: =IF(EntradaDatosExplotación!B221="","",EntradaDatosExplotación!B221) ->  | C87: =EntradaDatosExplotación!C221 -> 0
B88: =IF(EntradaDatosExplotación!B222="","",EntradaDatosExplotación!B222) ->  | C88: =EntradaDatosExplotación!C222 -> 0
B89: =IF(EntradaDatosExplotación!B225="","",EntradaDatosExplotación!B225) ->  | C89: =EntradaDatosExplotación!C225 -> 0
B90: =IF(EntradaDatosExplotación!B226="","",EntradaDatosExplotación!B226) ->  | C90: =EntradaDatosExplotación!C226 -> 0
B91: Variación inventario productos alimentarios | C91: =-(EntradaDatosExplotación!S124+EntradaDatosExplotación!S143+EntradaDatosExplotación!S157) -> -22724.89062
B92: Costes fijos | C92: =SUM(C93:C113) -> 109847.3493 | D92: €
B93: Amortización anual maquinaria | C93: =EntradaDatosExplotación!F202 -> 5400
B94: Amortización anual edificaciones | C94: =EntradaDatosExplotación!M192 -> 12036.57742
B95: Amortización instalaciones | C95: =EntradaDatosExplotación!M203 -> 6135.0219
B96: Coservación y reparación maquinaria | C96: =EntradaDatosExplotación!F206 -> 13569.64
B97: Conservación y reparación edificios | C97: =EntradaDatosExplotación!F207 -> 1992.22
B98: Contribuciones / impuestos | C98: =EntradaDatosExplotación!F208 -> 416.84
B99: Intereses prestamos y comisiones | C99: =EntradaDatosExplotación!F209 -> 8970.3
B100: Asesorías y Servicios Técnicos | C100: =EntradaDatosExplotación!F210 -> 0
B101: Sueldos fijos | C101: =EntradaDatosExplotación!I178 -> 27000
B102: Seguridad social familiar | C102: =EntradaDatosExplotación!F211 -> 8598.66
B103: Arrendamiento suelo agrícola | C103: =EntradaDatosExplotación!F212 -> 9325
B104: Arrendamiento edificios | C104: =EntradaDatosExplotación!F213 -> 4200
B105: Otros arrendamientos | C105: =EntradaDatosExplotación!F214 -> 1260
B106: Seguros vacas | C106: =EntradaDatosExplotación!F215 -> 5757.03
B107: Seguros maquinaria | C107: =EntradaDatosExplotación!F216 -> 775.95
B108: Seguros edificios | C108: =EntradaDatosExplotación!F217 -> 1159.72
B109: Seguros Cosechas | C109: =EntradaDatosExplotación!F218 -> 0
B110: Control lechero | C110: =EntradaDatosExplotación!F219 -> 1378.35
B111: Administración y gestoría | C111: =EntradaDatosExplotación!F220 -> 1542.32
B112: Seguros varios | C112: =EntradaDatosExplotación!F221 -> 329.72
B113: =IF(EntradaDatosExplotación!E225="","",EntradaDatosExplotación!E225) ->  | C113: =EntradaDatosExplotación!F225 -> 0
B114: Costes Oportunidad | C114: =(C115+C116+C117) -> 77472.10367 | D114: €
B115: Renta de la tierra | C115: =(EntradaDatosExplotación!B32*EntradaDatosExplotación!C65)+(EntradaDatosExplotación!C32*EntradaDatosExplotación!D65) -> 12800
B116: Mano de obra familiar | C116: =UTAf*Hores_UTA*Preu_h_f -> 63004
B117: Interés capital propio | C117: =(EntradaDatosExplotación!O74+EntradaDatosExplotación!N93+EntradaDatosExplotación!N100)*Int_bestiar+EntradaDatosExplotación!N192*Int_Edif+EntradaDatosExplotación!G202*Int_Maq+EntradaDatosExplotación!N203*Int_Frio+(3/12)*C33*Int_Cap_Cir -> 1668.103668
B118: Costes totales (sin incluir costes de oportunidad) | C118: =C92+C61 -> 352937.2987 | D118: €
B119: Costes totales (Incluyendo costes de oportunidad) | C119: =C118+C114 -> 430409.4024 | D119: €
B120: Margen bruto | C120: =C51-C61 -> 187553.1283 | D120: €
B121: Margen neto | C121: =MB-C92 -> 77705.77895 | D121: €
B122: Beneficio | C122: =MN-C114 -> 233.6752844 | D122: €
B123: RUT (Renta Unitaria del trabajo) | C123: =(MN+C102+C101)/C21 -> 37768.14632 | D123: €
B124: =B51 -> Ingresos totales | C124: =IT/Pl -> 0.4208823941 | D124: cts.€/litro
B125: Ingresos por leche vendida | C125: =C52/Pl -> 0.3365455948
B126: Ingresos por venta neta de terneros | C126: 0.005003953319
B127: Ingresos por venta neta resto animales | C127: 0.01521566355
B128: Venta estiércol | C128: 0
B129: Subvenciones | C129: 0.06405631891
B130: Indemnizaciones | C130: 0
C131: 0
C132: 0
B133: Ingresos por variación de inventario animal | C133: 6.086351424e-05
B134: Costes Variables | C134: =CV/Pl -> 0.2375802264
B135: Productos comprados para la alimentación | C135: =Prod_comp/Pl -> 0.1493580377
B136: Forrajes comprados | C136: =C63/Pl -> 0
B137: Concentrados | C137: 0.1493580377
B138: Costes parcelas | C138: 0.0123349404
B139: Semillas | C139: 0.00390933853
B140: Abonos | C140: 0.003127470824
B141: Tratamientos | C141: 0.002052402728
B142: Plásticos y conservantes | C142: 0.00129105905
B143: Otros (agua riego, etc.) | C143: 0.001954669265
B144: Maquinaria | C144: 0.05069525631
B145: Carburantes y lubricantes | C145: 0.01992212598
B146: Alquiler maquinaria | C146: 0.03077313033
B147: Veterinario | C147: 0.008989367577
B148: Medicinas y productos veterinarios | C148: 0.005890649937
B149: Lecho / camas | C149: 0.01115059652
B150: Material diverso | C150: 0.004128486275
B151: Luz | C151: 0.006802073122
B152: Teléfono | C152: 0
B153: Detergentes y desinfectantes | C153: 0.002958509213
B154: Consumo agua | C154: 0.004387499499
B155: Inseminaciones | C155: 0.00309463238
B156: Sueldos eventuales (incluida SS) | C156: 0
C157: 0
C158: 0
C159: 0
C160: 0
C161: 0
C162: 0
C163: 0
B164: Variación inventario productos alimentarios | C164: -0.02220982262
B165: Costes fijos | C165: =CF/Pl -> 0.1073576188
B166: Amortización anual maquinaria | C166: =C93/Pl -> 0.005277607016
B167: =B94 -> Amortización anual edificaciones | C167: 0.01176376397
B168: Amortización instalaciones | C168: 0.005995969374
B169: =B96 -> Coservación y reparación maquinaria | C169: 0.01326207912
B170: Conservación y reparación edificios | C170: 0.001947065602
B171: Contribuciones / impuestos | C171: 0.0004073921682
B172: Intereses prestamos y comisiones | C172: 0.008766984854
B173: Asesorías y Servicios Técnicos | C173: 0
B174: Sueldos fijos | C174: 0.02638803508
B175: Seguridad social familiar | C175: 0.008403768211
B176: Arrendamiento suelo agrícola | C176: 0.009113645448
B177: Arrendamiento edificios | C177: 0.004104805457
B178: Otros arrendamientos | C178: 0.001231441637
B179: Seguros vacas | C179: 0.0056265448
B180: Seguros maquinaria | C180: 0.0007583628081
B181: Seguros edificios | C181: 0.00113343452
B182: Seguros Cosechas | C182: 0
B183: Control lechero | C183: 0.001347109191
B184: Administración y gestoría | C184: 0.00150736275
B185: Seguros varios | C185: 0.000322246775
C186: 0
B187: Costes Oportunidad | C187: =CO/Pl -> 0.07571616997
B188: Renta de la tierra | C188: =C115/Pl -> 0.0125098833
B189: Mano de obra familiar | C189: 0.06157599119
B190: Interés capital propio | C190: 0.001630295485
B191: Costes totales (sin incluir costes de oportunidad) | C191: 0.3449378451
B192: Costes totales (Incluyendo costes de oportunidad) | C192: 0.4206540151
B193: Margen bruto | C193: 0.1833021677
B194: Margen neto | C194: 0.07594454892
B195: Beneficio | C195: 0.0002283789482
B196: RUT (Renta Unitaria del trabajo) | C196: 0.0369121174
B197: Llindar rendibilitat MN | C197: =C191-(C124-C125) -> 0.2606010459
B198: Llindar rendibilitat B | C198: =C192-(C124-C125) -> 0.3363172158
B199: =IF(C199="","","Maquinaria") -> Maquinaria | C199: =IF(EntradaDatosExplotación!B183="","",EntradaDatosExplotación!B183) -> Bañera Gili 12 Tm
B200: =IF(C200="","","Maquinaria") -> Maquinaria | C200: =IF(EntradaDatosExplotación!B184="","",EntradaDatosExplotación!B184) -> John Deere 6820
B201: Maquinaria | C201: =IF(EntradaDatosExplotación!B185="","",EntradaDatosExplotación!B185) -> Compar RBT-600
... 92 more rows

Sheet ResultadosGrupoGestión
A1: concepto | B1: Encuestas | C1: min | D1: max | E1: media
B2: =COUNTA($F4:$GL4) -> 0
A3: =ResultadosTécnicosEconómicos!B3 -> C.autonoma
A4: =ResultadosTécnicosEconómicos!B4 -> Nom o nombre explotació | B4: Casos
A5: =ResultadosTécnicosEconómicos!B5 -> Província
A6: =ResultadosTécnicosEconómicos!B6 -> Comarca
A7: =ResultadosTécnicosEconómicos!B7 -> Municipio
A8: =ResultadosTécnicosEconómicos!B8 -> Control lechero | B8: =COUNTA($F8:$GL8) -> 0
A9: =ResultadosTécnicosEconómicos!B9 -> Has totales | B9: 0 | C9: =MIN($F9:$GL9) -> 0 | D9: =MAX($F9:$GL9) -> 0 | E9: =SUMIF($F9:$GL9,">0")/$B$2 -> 
A10: =ResultadosTécnicosEconómicos!B10 -> % Sup propia | B10: 0 | C10: 0 | D10: 0
A11: =ResultadosTécnicosEconómicos!B11 -> Has de forrajes | B11: 0 | C11: 0 | D11: 0
A12: =ResultadosTécnicosEconómicos!B12 -> Has a leche | B12: 0 | C12: 0 | D12: 0
A13: =ResultadosTécnicosEconómicos!B13 -> % regadio | B13: 0 | C13: 0 | D13: 0
A14: =ResultadosTécnicosEconómicos!B14 -> vacas inicio | B14: 0 | C14: 0 | D14: 0
A15: =ResultadosTécnicosEconómicos!B15 -> vacas final | B15: 0 | C15: 0 | D15: 0
A16: =ResultadosTécnicosEconómicos!B16 -> Nº vacas media | B16: 0 | C16: 0 | D16: 0
A17: =ResultadosTécnicosEconómicos!B17 -> % primer parto | B17: 0 | C17: 0 | D17: 0
A18: =ResultadosTécnicosEconómicos!B18 -> % secas | B18: 0 | C18: 0 | D18: 0
A19: =ResultadosTécnicosEconómicos!B19 -> tendencia: (v2-v1)*100/v1 | B19: 0 | C19: 0 | D19: 0
A20: =ResultadosTécnicosEconómicos!B20 -> UGM media | B20: 0 | C20: 0 | D20: 0
A21: =ResultadosTécnicosEconómicos!B21 -> Uta_totales | B21: 0 | C21: 0 | D21: 0
A22: =ResultadosTécnicosEconómicos!B22 -> Uta_familiar | B22: 0 | C22: 0 | D22: 0
A23: =ResultadosTécnicosEconómicos!B23 -> Uta_Asalariada | B23: 0 | C23: 0 | D23: 0
A24: =ResultadosTécnicosEconómicos!B24 -> Personas fijas totales | B24: 0 | C24: 0 | D24: 0
A25: =ResultadosTécnicosEconómicos!B25 -> Personas fijas familiares | B25: 0 | C25: 0 | D25: 0
A26: =ResultadosTécnicosEconómicos!B26 -> horas familiares declaradas | B26: 0 | C26: 0 | D26: 0
A27: =ResultadosTécnicosEconómicos!B27 -> horas asal total | B27: 0 | C27: 0 | D27: 0
A28: =ResultadosTécnicosEconómicos!B28 -> Capital Total | B28: 0 | C28: 0 | D28: 0
A29: =ResultadosTécnicosEconómicos!B29 -> Capital edificios | B29: 0 | C29: 0 | D29: 0
A30: =ResultadosTécnicosEconómicos!B30 -> Capital maquinaria | B30: 0 | C30: 0 | D30: 0
A31: =ResultadosTécnicosEconómicos!B31 -> Capital instalaciones ordeño y frio | B31: 0 | C31: 0 | D31: 0
A32: =ResultadosTécnicosEconómicos!B32 -> Capital ganado | B32: 0 | C32: 0 | D32: 0
A33: =ResultadosTécnicosEconómicos!B33 -> Capital circulante | B33: 0 | C33: 0 | D33: 0
A34: =ResultadosTécnicosEconómicos!B34 -> vacas media/ha leche | B34: 0 | C34: 0 | D34: 0
A35: =ResultadosTécnicosEconómicos!B35 -> UGM vacuno leche/ha leche | B35: 0 | C35: 0 | D35: 0
A36: =ResultadosTécnicosEconómicos!B36 -> vacas media/uta totales | B36: 0 | C36: 0 | D36: 0
A37: =ResultadosTécnicosEconómicos!B37 -> Capital total/vacas media | B37: 0 | C37: 0 | D37: 0
A38: =ResultadosTécnicosEconómicos!B38 -> Capital/uta | B38: 0 | C38: 0 | D38: 0
A39: =ResultadosTécnicosEconómicos!B39 -> Leche vendida + consumo familiar | B39: 0 | C39: 0 | D39: 0
A40: =ResultadosTécnicosEconómicos!B40 -> Leche reempleada | B40: 0 | C40: 0 | D40: 0
A41: =ResultadosTécnicosEconómicos!B41 -> Consumo familiar | B41: 0 | C41: 0 | D41: 0 | E41: =SUMIF($F41:$GL41,">0")/$B$2 -> 
A42: =ResultadosTécnicosEconómicos!B42 -> leche producida | B42: 0 | C42: 0 | D42: 0
A43: =ResultadosTécnicosEconómicos!B43 -> leche producida por vaca media | B43: 0 | C43: 0 | D43: 0
A44: =ResultadosTécnicosEconómicos!B44 -> Total de pienso, 90% MS, a vacas | B44: 0 | C44: 0 | D44: 0
A45: =ResultadosTécnicosEconómicos!B45 -> Total de pienso de vaca por vaca media | B45: 0 | C45: 0 | D45: 0
A46: =ResultadosTécnicosEconómicos!B46 -> consumo de pienso de vaca por litro | B46: 0 | C46: 0 | D46: 0
A47: =ResultadosTécnicosEconómicos!B47 -> € litro leche vendida | B47: 0 | C47: 0 | D47: 0
A48: =ResultadosTécnicosEconómicos!B48 -> €/Kg concentrado comprado vacas | B48: 0 | C48: 0 | D48: 0
A49: =ResultadosTécnicosEconómicos!B49 -> €/Kg concentrado recría | B49: 0 | C49: 0 | D49: 0
A50: =ResultadosTécnicosEconómicos!B50 -> Coste cultivos por ha | B50: 0 | C50: 0 | D50: 0
A51: =ResultadosTécnicosEconómicos!B51 -> Ingresos totales | B51: 0 | C51: 0 | D51: 0
A52: =ResultadosTécnicosEconómicos!B52 -> Ingresos por leche vendida | B52: 0 | C52: 0 | D52: 0
A53: =ResultadosTécnicosEconómicos!B53 -> Ingresos por venta neta de terneros | B53: 0 | C53: 0 | D53: 0
A54: =ResultadosTécnicosEconómicos!B54 -> Ingresos por venta neta resto animales | B54: 0 | C54: 0 | D54: 0
A55: =ResultadosTécnicosEconómicos!B55 -> Venta estiércol | B55: 0 | C55: 0 | D55: 0
A56: =ResultadosTécnicosEconómicos!B56 -> Subvenciones | B56: 0 | C56: 0 | D56: 0
A57: =ResultadosTécnicosEconómicos!B57 -> Indemnizaciones | B57: 0 | C57: 0 | D57: 0
A58: =ResultadosTécnicosEconómicos!B58 ->  | B58: 0 | C58: 0 | D58: 0
A59: =ResultadosTécnicosEconómicos!B59 ->  | B59: 0 | C59: 0 | D59: 0
A60: =ResultadosTécnicosEconómicos!B60 -> Ingresos por variación de inventario animal | B60: 0 | C60: 0 | D60: 0
A61: =ResultadosTécnicosEconómicos!B61 -> Costes Variables | B61: 0 | C61: 0 | D61: 0
A62: =ResultadosTécnicosEconómicos!B62 -> Productos comprados para la alimentación | B62: 0 | C62: 0 | D62: 0
A63: =ResultadosTécnicosEconómicos!B63 -> Forrajes comprados | B63: 0 | C63: 0 | D63: 0
A64: =ResultadosTécnicosEconómicos!B64 -> Concentrados | B64: 0 | C64: 0 | D64: 0
A65: =ResultadosTécnicosEconómicos!B65 -> Costes parcelas | B65: 0 | C65: 0 | D65: 0
A66: =ResultadosTécnicosEconómicos!B66 -> Semillas | B66: 0 | C66: 0 | D66: 0
A67: =ResultadosTécnicosEconómicos!B67 -> Abonos | B67: 0 | C67: 0 | D67: 0
A68: =ResultadosTécnicosEconómicos!B68 -> Tratamientos | B68: 0 | C68: 0 | D68: 0
A69: =ResultadosTécnicosEconómicos!B69 -> Plásticos y conservantes | B69: 0 | C69: 0 | D69: 0
A70: =ResultadosTécnicosEconómicos!B70 -> Otros (agua riego, etc.) | B70: 0 | C70: 0 | D70: 0
A71: =ResultadosTécnicosEconómicos!B71 -> Maquinaria | B71: 0 | C71: 0 | D71: 0
A72: =ResultadosTécnicosEconómicos!B72 -> Carburantes y lubricantes | B72: =COUNTA($F72:$GL72) -> 0 | C72: 0 | D72: 0
A73: =ResultadosTécnicosEconómicos!B73 -> Alquiler maquinaria | B73: 0 | C73: =MIN($F73:$GL73) -> 0 | D73: =MAX($F73:$GL73) -> 0 | E73: =SUMIF($F73:$GL73,">0")/$B$2 -> 
A74: =ResultadosTécnicosEconómicos!B74 -> Veterinario | B74: 0 | C74: 0 | D74: 0
A75: =ResultadosTécnicosEconómicos!B75 -> Medicinas y productos veterinarios | B75: 0 | C75: 0 | D75: 0
A76: =ResultadosTécnicosEconómicos!B76 -> Lecho / camas | B76: 0 | C76: 0 | D76: 0
A77: =ResultadosTécnicosEconómicos!B77 -> Material diverso | B77: 0 | C77: 0 | D77: 0
A78: =ResultadosTécnicosEconómicos!B78 -> Luz | B78: 0 | C78: 0 | D78: 0
A79: =ResultadosTécnicosEconómicos!B79 -> Teléfono | B79: 0 | C79: 0 | D79: 0
A80: =ResultadosTécnicosEconómicos!B80 -> Detergentes y desinfectantes | B80: 0 | C80: 0 | D80: 0
A81: =ResultadosTécnicosEconómicos!B81 -> Consumo agua | B81: 0 | C81: 0 | D81: 0
A82: =ResultadosTécnicosEconómicos!B82 -> Inseminaciones | B82: 0 | C82: 0 | D82: 0
A83: =ResultadosTécnicosEconómicos!B83 -> Sueldos eventuales (incluida SS) | B83: 0 | C83: 0 | D83: 0
A84: =ResultadosTécnicosEconómicos!B84 ->  | B84: 0 | C84: 0 | D84: 0
A85: =ResultadosTécnicosEconómicos!B85 ->  | B85: 0 | C85: 0 | D85: 0
A86: =ResultadosTécnicosEconómicos!B86 ->  | B86: 0 | C86: 0 | D86: 0
A87: =ResultadosTécnicosEconómicos!B87 ->  | B87: 0 | C87: 0 | D87: 0
A88: =ResultadosTécnicosEconómicos!B88 ->  | B88: 0 | C88: 0 | D88: 0
A89: =ResultadosTécnicosEconómicos!B89 ->  | B89: 0 | C89: 0 | D89: 0
A90: =ResultadosTécnicosEconómicos!B90 ->  | B90: 0 | C90: 0 | D90: 0
A91: =ResultadosTécnicosEconómicos!B91 -> Variación inventario productos alimentarios | B91: 0 | C91: 0 | D91: 0
A92: =ResultadosTécnicosEconómicos!B92 -> Costes fijos | B92: 0 | C92: 0 | D92: 0
A93: =ResultadosTécnicosEconómicos!B93 -> Amortización anual maquinaria | B93: 0 | C93: 0 | D93: 0
A94: =ResultadosTécnicosEconómicos!B94 -> Amortización anual edificaciones | B94: 0 | C94: 0 | D94: 0
A95: =ResultadosTécnicosEconómicos!B95 -> Amortización instalaciones | B95: 0 | C95: 0 | D95: 0
A96: =ResultadosTécnicosEconómicos!B96 -> Coservación y reparación maquinaria | B96: 0 | C96: 0 | D96: 0
A97: =ResultadosTécnicosEconómicos!B97 -> Conservación y reparación edificios | B97: 0 | C97: 0 | D97: 0
A98: =ResultadosTécnicosEconómicos!B98 -> Contribuciones / impuestos | B98: 0 | C98: 0 | D98: 0
A99: =ResultadosTécnicosEconómicos!B99 -> Intereses prestamos y comisiones | B99: 0 | C99: 0 | D99: 0
A100: =ResultadosTécnicosEconómicos!B100 -> Asesorías y Servicios Técnicos | B100: 0 | C100: 0 | D100: 0
A101: =ResultadosTécnicosEconómicos!B101 -> Sueldos fijos | B101: 0 | C101: 0 | D101: 0
A102: =ResultadosTécnicosEconómicos!B102 -> Seguridad social familiar | B102: 0 | C102: 0 | D102: 0
A103: =ResultadosTécnicosEconómicos!B103 -> Arrendamiento suelo agrícola | B103: 0 | C103: 0 | D103: 0
A104: =ResultadosTécnicosEconómicos!B104 -> Arrendamiento edificios | B104: 0 | C104: 0 | D104: 0
A105: =ResultadosTécnicosEconómicos!B105 -> Otros arrendamientos | B105: 0 | C105: 0 | D105: 0 | E105: =SUMIF($F105:$GL105,">0")/$B$2 -> 
A106: =ResultadosTécnicosEconómicos!B106 -> Seguros vacas | B106: 0 | C106: 0 | D106: 0
A107: =ResultadosTécnicosEconómicos!B107 -> Seguros maquinaria | B107: 0 | C107: 0 | D107: 0
A108: =ResultadosTécnicosEconómicos!B108 -> Seguros edificios | B108: 0 | C108: 0 | D108: 0
A109: =ResultadosTécnicosEconómicos!B109 -> Seguros Cosechas | B109: 0 | C109: 0 | D109: 0
A110: =ResultadosTécnicosEconómicos!B110 -> Control lechero | B110: 0 | C110: 0 | D110: 0
A111: =ResultadosTécnicosEconómicos!B111 -> Administración y gestoría | B111: 0 | C111: 0 | D111: 0
A112: =ResultadosTécnicosEconómicos!B112 -> Seguros varios | B112: 0 | C112: 0 | D112: 0
A113: =ResultadosTécnicosEconómicos!B113 ->  | B113: 0 | C113: 0 | D113: 0
A114: =ResultadosTécnicosEconómicos!B114 -> Costes Oportunidad | B114: 0 | C114: 0 | D114: 0
A115: =ResultadosTécnicosEconómicos!B115 -> Renta de la tierra | B115: 0 | C115: 0 | D115: 0
A116: =ResultadosTécnicosEconómicos!B116 -> Mano de obra familiar | B116: 0 | C116: 0 | D116: 0
A117: =ResultadosTécnicosEconómicos!B117 -> Interés capital propio | B117: 0 | C117: 0 | D117: 0
A118: =ResultadosTécnicosEconómicos!B118 -> Costes totales (sin incluir costes de oportunidad) | B118: 0 | C118: 0 | D118: 0
A119: =ResultadosTécnicosEconómicos!B119 -> Costes totales (Incluyendo costes de oportunidad) | B119: 0 | C119: 0 | D119: 0
A120: =ResultadosTécnicosEconómicos!B120 -> Margen bruto | B120: 0 | C120: 0 | D120: 0
A121: =ResultadosTécnicosEconómicos!B121 -> Margen neto | B121: 0 | C121: 0 | D121: 0
A122: =ResultadosTécnicosEconómicos!B122 -> Beneficio | B122: 0 | C122: 0 | D122: 0
A123: =ResultadosTécnicosEconómicos!B123 -> RUT (Renta Unitaria del trabajo) | B123: 0 | C123: 0 | D123: 0
A124: =ResultadosTécnicosEconómicos!B124 -> Ingresos totales | B124: 0 | C124: 0 | D124: 0
A125: =ResultadosTécnicosEconómicos!B125 -> Ingresos por leche vendida | B125: 0 | C125: 0 | D125: 0
A126: =ResultadosTécnicosEconómicos!B126 -> Ingresos por venta neta de terneros | B126: 0 | C126: 0 | D126: 0
A127: =ResultadosTécnicosEconómicos!B127 -> Ingresos por venta neta resto animales | B127: 0 | C127: 0 | D127: 0
A128: =ResultadosTécnicosEconómicos!B128 -> Venta estiércol | B128: 0 | C128: 0 | D128: 0
A129: =ResultadosTécnicosEconómicos!B129 -> Subvenciones | B129: 0 | C129: 0 | D129: 0
A130: =ResultadosTécnicosEconómicos!B130 -> Indemnizaciones | B130: 0 | C130: 0 | D130: 0
A131: =ResultadosTécnicosEconómicos!B131 ->  | B131: 0 | C131: 0 | D131: 0
A132: =ResultadosTécnicosEconómicos!B132 ->  | B132: 0 | C132: 0 | D132: 0
A133: =ResultadosTécnicosEconómicos!B133 -> Ingresos por variación de inventario animal | B133: 0 | C133: 0 | D133: 0
A134: =ResultadosTécnicosEconómicos!B134 -> Costes Variables | B134: 0 | C134: 0 | D134: 0
A135: =ResultadosTécnicosEconómicos!B135 -> Productos comprados para la alimentación | B135: 0 | C135: 0 | D135: 0
A136: =ResultadosTécnicosEconómicos!B136 -> Forrajes comprados | B136: =COUNTA($F136:$GL136) -> 0 | C136: 0 | D136: 0
A137: =ResultadosTécnicosEconómicos!B137 -> Concentrados | B137: 0 | C137: =MIN($F137:$GL137) -> 0 | D137: =MAX($F137:$GL137) -> 0 | E137: =SUMIF($F137:$GL137,">0")/$B$2 -> 
A138: =ResultadosTécnicosEconómicos!B138 -> Costes parcelas | B138: 0 | C138: 0 | D138: 0
A139: =ResultadosTécnicosEconómicos!B139 -> Semillas | B139: 0 | C139: 0 | D139: 0
A140: =ResultadosTécnicosEconómicos!B140 -> Abonos | B140: 0 | C140: 0 | D140: 0
A141: =ResultadosTécnicosEconómicos!B141 -> Tratamientos | B141: 0 | C141: 0 | D141: 0
A142: =ResultadosTécnicosEconómicos!B142 -> Plásticos y conservantes | B142: 0 | C142: 0 | D142: 0
A143: =ResultadosTécnicosEconómicos!B143 -> Otros (agua riego, etc.) | B143: 0 | C143: 0 | D143: 0
A144: =ResultadosTécnicosEconómicos!B144 -> Maquinaria | B144: 0 | C144: 0 | D144: 0
A145: =ResultadosTécnicosEconómicos!B145 -> Carburantes y lubricantes | B145: 0 | C145: 0 | D145: 0
A146: =ResultadosTécnicosEconómicos!B146 -> Alquiler maquinaria | B146: 0 | C146: 0 | D146: 0
A147: =ResultadosTécnicosEconómicos!B147 -> Veterinario | B147: 0 | C147: 0 | D147: 0
A148: =ResultadosTécnicosEconómicos!B148 -> Medicinas y productos veterinarios | B148: 0 | C148: 0 | D148: 0
A149: =ResultadosTécnicosEconómicos!B149 -> Lecho / camas | B149: 0 | C149: 0 | D149: 0
A150: =ResultadosTécnicosEconómicos!B150 -> Material diverso | B150: 0 | C150: 0 | D150: 0
A151: =ResultadosTécnicosEconómicos!B151 -> Luz | B151: 0 | C151: 0 | D151: 0
A152: =ResultadosTécnicosEconómicos!B152 -> Teléfono | B152: 0 | C152: 0 | D152: 0
A153: =ResultadosTécnicosEconómicos!B153 -> Detergentes y desinfectantes | B153: 0 | C153: 0 | D153: 0
A154: =ResultadosTécnicosEconómicos!B154 -> Consumo agua | B154: 0 | C154: 0 | D154: 0
A155: =ResultadosTécnicosEconómicos!B155 -> Inseminaciones | B155: 0 | C155: 0 | D155: 0
A156: =ResultadosTécnicosEconómicos!B156 -> Sueldos eventuales (incluida SS) | B156: 0 | C156: 0 | D156: 0
A157: =ResultadosTécnicosEconómicos!B157 ->  | B157: 0 | C157: 0 | D157: 0
A158: =ResultadosTécnicosEconómicos!B158 ->  | B158: 0 | C158: 0 | D158: 0
A159: =ResultadosTécnicosEconómicos!B159 ->  | B159: 0 | C159: 0 | D159: 0
A160: =ResultadosTécnicosEconómicos!B160 ->  | B160: 0 | C160: 0 | D160: 0
A161: =ResultadosTécnicosEconómicos!B161 ->  | B161: 0 | C161: 0 | D161: 0
A162: =ResultadosTécnicosEconómicos!B162 ->  | B162: 0 | C162: 0 | D162: 0
A163: =ResultadosTécnicosEconómicos!B163 ->  | B163: 0 | C163: 0 | D163: 0
A164: =ResultadosTécnicosEconómicos!B164 -> Variación inventario productos alimentarios | B164: 0 | C164: 0 | D164: 0
A165: =ResultadosTécnicosEconómicos!B165 -> Costes fijos | B165: 0 | C165: 0 | D165: 0
A166: =ResultadosTécnicosEconómicos!B166 -> Amortización anual maquinaria | B166: 0 | C166: 0 | D166: 0
A167: =ResultadosTécnicosEconómicos!B167 -> Amortización anual edificaciones | B167: 0 | C167: 0 | D167: 0
A168: =ResultadosTécnicosEconómicos!B168 -> Amortización instalaciones | B168: 0 | C168: 0 | D168: 0
A169: =ResultadosTécnicosEconómicos!B169 -> Coservación y reparación maquinaria | B169: 0 | C169: 0 | D169: 0 | E169: =SUMIF($F169:$GL169,">0")/$B$2 -> 
A170: =ResultadosTécnicosEconómicos!B170 -> Conservación y reparación edificios | B170: 0 | C170: 0 | D170: 0
A171: =ResultadosTécnicosEconómicos!B171 -> Contribuciones / impuestos | B171: 0 | C171: 0 | D171: 0
A172: =ResultadosTécnicosEconómicos!B172 -> Intereses prestamos y comisiones | B172: 0 | C172: 0 | D172: 0
A173: =ResultadosTécnicosEconómicos!B173 -> Asesorías y Servicios Técnicos | B173: 0 | C173: 0 | D173: 0
A174: =ResultadosTécnicosEconómicos!B174 -> Sueldos fijos | B174: 0 | C174: 0 | D174: 0
A175: =ResultadosTécnicosEconómicos!B175 -> Seguridad social familiar | B175: 0 | C175: 0 | D175: 0 | E175: =SUM($F175:$GL175)/$B$2 -> 
A176: =ResultadosTécnicosEconómicos!B176 -> Arrendamiento suelo agrícola | B176: 0 | C176: 0 | D176: 0
A177: =ResultadosTécnicosEconómicos!B177 -> Arrendamiento edificios | B177: 0 | C177: 0 | D177: 0
A178: =ResultadosTécnicosEconómicos!B178 -> Otros arrendamientos | B178: 0 | C178: 0 | D178: 0
A179: =ResultadosTécnicosEconómicos!B179 -> Seguros vacas | B179: 0 | C179: 0 | D179: 0
A180: =ResultadosTécnicosEconómicos!B180 -> Seguros maquinaria | B180: 0 | C180: 0 | D180: 0
A181: =ResultadosTécnicosEconómicos!B181 -> Seguros edificios | B181: 0 | C181: 0 | D181: 0
A182: =ResultadosTécnicosEconómicos!B182 -> Seguros Cosechas | B182: 0 | C182: 0 | D182: 0
A183: =ResultadosTécnicosEconómicos!B183 -> Control lechero | B183: 0 | C183: 0 | D183: 0
A184: =ResultadosTécnicosEconómicos!B184 -> Administración y gestoría | B184: 0 | C184: 0 | D184: 0
A185: =ResultadosTécnicosEconómicos!B185 -> Seguros varios | B185: 0 | C185: 0 | D185: 0
A186: =ResultadosTécnicosEconómicos!B186 ->  | B186: 0 | C186: 0 | D186: 0
A187: =ResultadosTécnicosEconómicos!B187 -> Costes Oportunidad | B187: 0 | C187: 0 | D187: 0
A188: =ResultadosTécnicosEconómicos!B188 -> Renta de la tierra | B188: 0 | C188: 0 | D188: 0
A189: =ResultadosTécnicosEconómicos!B189 -> Mano de obra familiar | B189: 0 | C189: 0 | D189: 0
A190: =ResultadosTécnicosEconómicos!B190 -> Interés capital propio | B190: 0 | C190: 0 | D190: 0
A191: =ResultadosTécnicosEconómicos!B191 -> Costes totales (sin incluir costes de oportunidad) | B191: 0 | C191: 0 | D191: 0
A192: =ResultadosTécnicosEconómicos!B192 -> Costes totales (Incluyendo costes de oportunidad) | B192: 0 | C192: 0 | D192: 0
A193: =ResultadosTécnicosEconómicos!B193 -> Margen bruto | B193: 0 | C193: 0 | D193: 0
A194: =ResultadosTécnicosEconómicos!B194 -> Margen neto | B194: 0 | C194: 0 | D194: 0
A195: =ResultadosTécnicosEconómicos!B195 -> Beneficio | B195: 0 | C195: 0 | D195: 0
A196: =ResultadosTécnicosEconómicos!B196 -> RUT (Renta Unitaria del trabajo) | B196: 0 | C196: 0 | D196: 0
A197: =ResultadosTécnicosEconómicos!B197 -> Llindar rendibilitat MN | B197: 0 | C197: 0 | D197: 0
A198: =ResultadosTécnicosEconómicos!B198 -> Llindar rendibilitat B | B198: 0 | C198: 0 | D198: 0
A199: =ResultadosTécnicosEconómicos!B199 -> Maquinaria | B199: 0 | C199: 0 | D199: 0
A200: =ResultadosTécnicosEconómicos!B200 -> Maquinaria | B200: =COUNTA($F200:$GL200) -> 0 | C200: 0 | D200: 0
... 93 more rows

Sheet ResultadosEconómicosÚltimaExpl
B1: Grup de Remugants
B2: Año | C2: =EntradaDatosExplotación!E16 -> 2021
B3: Nombre o número explotación | C3: =ResultadosTécnicosEconómicos!C4 -> dddd
B4: Has totales | C4: =ST -> 75
B5: Has de leche | C5: =Sllet -> 75
B6: % regadío | C6: =ResultadosTécnicosEconómicos!C13 -> 0.3333333333
B7: Nº vacas media | C7: =VM -> 116
B8: % Primer parto | C8: =ResultadosTécnicosEconómicos!C17 -> 0.349137931
B9: UGM media | C9: =UBM -> 163.5
B10: UTA totales | C10: =UTA -> 3
B11: UTA familiar | C11: =UTAf -> 2
B12: Vacas media/ha | C12: =VM_ha -> 1.546666667
B13: UGM vacuno leche/ha | C13: =UBM_ha -> 2.18
B14: Consumo de pienso de vaca por kg de leche | C14: =ResultadosTécnicosEconómicos!C46 -> 0.4411831464
B15: € litro leche vendido | C15: =Preu -> 0.3413421751 | D15: cts d'€/litre
B16: =ResultadosTécnicosEconómicos!B124 -> Ingresos totales | C16: =ResultadosTécnicosEconómicos!C124 -> 0.4208823941 | D16: =C16*100 -> 42.08823941
B17: =ResultadosTécnicosEconómicos!B125 -> Ingresos por leche vendida | C17: =ResultadosTécnicosEconómicos!C125 -> 0.3365455948 | D17: =C17*100 -> 33.65455948
B18: =ResultadosTécnicosEconómicos!B126 -> Ingresos por venta neta de terneros | C18: =ResultadosTécnicosEconómicos!C126 -> 0.005003953319 | D18: 0.5003953319
B19: =ResultadosTécnicosEconómicos!B127 -> Ingresos por venta neta resto animales | C19: =ResultadosTécnicosEconómicos!C127 -> 0.01521566355 | D19: 1.521566355
B20: =ResultadosTécnicosEconómicos!B128 -> Venta estiércol | C20: =ResultadosTécnicosEconómicos!C128 -> 0 | D20: 0
B21: =ResultadosTécnicosEconómicos!B129 -> Subvenciones | C21: =ResultadosTécnicosEconómicos!C129 -> 0.06405631891 | D21: 6.405631891
B22: =ResultadosTécnicosEconómicos!B130 -> Indemnizaciones | C22: =ResultadosTécnicosEconómicos!C130 -> 0 | D22: 0
B23: =ResultadosTécnicosEconómicos!B131 ->  | C23: =ResultadosTécnicosEconómicos!C131 -> 0 | D23: 0
B24: =ResultadosTécnicosEconómicos!B132 ->  | C24: =ResultadosTécnicosEconómicos!C132 -> 0 | D24: 0
B25: =ResultadosTécnicosEconómicos!B133 -> Ingresos por variación de inventario animal | C25: =ResultadosTécnicosEconómicos!C133 -> 6.086351424e-05 | D25: 0.006086351424
B26: =ResultadosTécnicosEconómicos!B134 -> Costes Variables | C26: =ResultadosTécnicosEconómicos!C134 -> 0.2375802264 | D26: 23.75802264
B27: =ResultadosTécnicosEconómicos!B135 -> Productos comprados para la alimentación | C27: =ResultadosTécnicosEconómicos!C135 -> 0.1493580377 | D27: 14.93580377
B28: =ResultadosTécnicosEconómicos!B136 -> Forrajes comprados | C28: =ResultadosTécnicosEconómicos!C136 -> 0 | D28: 0
B29: =ResultadosTécnicosEconómicos!B137 -> Concentrados | C29: =ResultadosTécnicosEconómicos!C137 -> 0.1493580377 | D29: 14.93580377
B30: =ResultadosTécnicosEconómicos!B138 -> Costes parcelas | C30: =ResultadosTécnicosEconómicos!C138 -> 0.0123349404 | D30: 1.23349404
B31: =ResultadosTécnicosEconómicos!B139 -> Semillas | C31: =ResultadosTécnicosEconómicos!C139 -> 0.00390933853 | D31: 0.390933853
B32: =ResultadosTécnicosEconómicos!B140 -> Abonos | C32: =ResultadosTécnicosEconómicos!C140 -> 0.003127470824 | D32: 0.3127470824
B33: =ResultadosTécnicosEconómicos!B141 -> Tratamientos | C33: =ResultadosTécnicosEconómicos!C141 -> 0.002052402728 | D33: 0.2052402728
B34: =ResultadosTécnicosEconómicos!B142 -> Plásticos y conservantes | C34: =ResultadosTécnicosEconómicos!C142 -> 0.00129105905 | D34: 0.129105905
B35: =ResultadosTécnicosEconómicos!B143 -> Otros (agua riego, etc.) | C35: =ResultadosTécnicosEconómicos!C143 -> 0.001954669265 | D35: 0.1954669265
B36: =ResultadosTécnicosEconómicos!B144 -> Maquinaria | C36: =ResultadosTécnicosEconómicos!C144 -> 0.05069525631 | D36: 5.069525631
B37: =ResultadosTécnicosEconómicos!B145 -> Carburantes y lubricantes | C37: =ResultadosTécnicosEconómicos!C145 -> 0.01992212598 | D37: 1.992212598
B38: =ResultadosTécnicosEconómicos!B146 -> Alquiler maquinaria | C38: =ResultadosTécnicosEconómicos!C146 -> 0.03077313033 | D38: 3.077313033
B39: =ResultadosTécnicosEconómicos!B147 -> Veterinario | C39: =ResultadosTécnicosEconómicos!C147 -> 0.008989367577 | D39: 0.8989367577
B40: =ResultadosTécnicosEconómicos!B148 -> Medicinas y productos veterinarios | C40: =ResultadosTécnicosEconómicos!C148 -> 0.005890649937 | D40: 0.5890649937
B41: =ResultadosTécnicosEconómicos!B149 -> Lecho / camas | C41: =ResultadosTécnicosEconómicos!C149 -> 0.01115059652 | D41: 1.115059652
B42: =ResultadosTécnicosEconómicos!B150 -> Material diverso | C42: =ResultadosTécnicosEconómicos!C150 -> 0.004128486275 | D42: 0.4128486275
B43: =ResultadosTécnicosEconómicos!B151 -> Luz | C43: =ResultadosTécnicosEconómicos!C151 -> 0.006802073122 | D43: 0.6802073122
B44: =ResultadosTécnicosEconómicos!B152 -> Teléfono | C44: =ResultadosTécnicosEconómicos!C152 -> 0 | D44: 0
B45: =ResultadosTécnicosEconómicos!B153 -> Detergentes y desinfectantes | C45: =ResultadosTécnicosEconómicos!C153 -> 0.002958509213 | D45: 0.2958509213
B46: =ResultadosTécnicosEconómicos!B154 -> Consumo agua | C46: =ResultadosTécnicosEconómicos!C154 -> 0.004387499499 | D46: 0.4387499499
B47: =ResultadosTécnicosEconómicos!B155 -> Inseminaciones | C47: =ResultadosTécnicosEconómicos!C155 -> 0.00309463238 | D47: 0.309463238
B48: =ResultadosTécnicosEconómicos!B156 -> Sueldos eventuales (incluida SS) | C48: =ResultadosTécnicosEconómicos!C156 -> 0 | D48: 0
B49: =ResultadosTécnicosEconómicos!B157 ->  | C49: =ResultadosTécnicosEconómicos!C157 -> 0 | D49: 0
B50: =ResultadosTécnicosEconómicos!B158 ->  | C50: =ResultadosTécnicosEconómicos!C158 -> 0 | D50: 0
B51: =ResultadosTécnicosEconómicos!B159 ->  | C51: =ResultadosTécnicosEconómicos!C159 -> 0 | D51: 0
B52: =ResultadosTécnicosEconómicos!B160 ->  | C52: =ResultadosTécnicosEconómicos!C160 -> 0 | D52: 0
B53: =ResultadosTécnicosEconómicos!B161 ->  | C53: =ResultadosTécnicosEconómicos!C161 -> 0 | D53: 0
B54: =ResultadosTécnicosEconómicos!B162 ->  | C54: =ResultadosTécnicosEconómicos!C162 -> 0 | D54: 0
B55: =ResultadosTécnicosEconómicos!B163 ->  | C55: =ResultadosTécnicosEconómicos!C163 -> 0 | D55: 0
B56: =ResultadosTécnicosEconómicos!B164 -> Variación inventario productos alimentarios | C56: =ResultadosTécnicosEconómicos!C164 -> -0.02220982262 | D56: -2.220982262
B57: =ResultadosTécnicosEconómicos!B165 -> Costes fijos | C57: =ResultadosTécnicosEconómicos!C165 -> 0.1073576188 | D57: 10.73576188
B58: =ResultadosTécnicosEconómicos!B166 -> Amortización anual maquinaria | C58: =ResultadosTécnicosEconómicos!C166 -> 0.005277607016 | D58: 0.5277607016
B59: =ResultadosTécnicosEconómicos!B167 -> Amortización anual edificaciones | C59: =ResultadosTécnicosEconómicos!C167 -> 0.01176376397 | D59: =C59*100 -> 1.176376397
B60: =ResultadosTécnicosEconómicos!B168 -> Amortización instalaciones | C60: =ResultadosTécnicosEconómicos!C168 -> 0.005995969374 | D60: 0.5995969374
B61: =ResultadosTécnicosEconómicos!B169 -> Coservación y reparación maquinaria | C61: =ResultadosTécnicosEconómicos!C169 -> 0.01326207912 | D61: 1.326207912
B62: =ResultadosTécnicosEconómicos!B170 -> Conservación y reparación edificios | C62: =ResultadosTécnicosEconómicos!C170 -> 0.001947065602 | D62: =C62*100 -> 0.1947065602
B63: =ResultadosTécnicosEconómicos!B171 -> Contribuciones / impuestos | C63: =ResultadosTécnicosEconómicos!C171 -> 0.0004073921682 | D63: 0.04073921682
B64: =ResultadosTécnicosEconómicos!B172 -> Intereses prestamos y comisiones | C64: =ResultadosTécnicosEconómicos!C172 -> 0.008766984854 | D64: 0.8766984854
B65: =ResultadosTécnicosEconómicos!B173 -> Asesorías y Servicios Técnicos | C65: =ResultadosTécnicosEconómicos!C173 -> 0 | D65: =C65*100 -> 0
B66: =ResultadosTécnicosEconómicos!B174 -> Sueldos fijos | C66: =ResultadosTécnicosEconómicos!C174 -> 0.02638803508 | D66: 2.638803508
B67: =ResultadosTécnicosEconómicos!B175 -> Seguridad social familiar | C67: =ResultadosTécnicosEconómicos!C175 -> 0.008403768211 | D67: 0.8403768211
B68: =ResultadosTécnicosEconómicos!B176 -> Arrendamiento suelo agrícola | C68: =ResultadosTécnicosEconómicos!C176 -> 0.009113645448 | D68: 0.9113645448
B69: =ResultadosTécnicosEconómicos!B177 -> Arrendamiento edificios | C69: =ResultadosTécnicosEconómicos!C177 -> 0.004104805457 | D69: 0.4104805457
B70: =ResultadosTécnicosEconómicos!B178 -> Otros arrendamientos | C70: =ResultadosTécnicosEconómicos!C178 -> 0.001231441637 | D70: 0.1231441637
B71: =ResultadosTécnicosEconómicos!B179 -> Seguros vacas | C71: =ResultadosTécnicosEconómicos!C179 -> 0.0056265448 | D71: 0.56265448
B72: =ResultadosTécnicosEconómicos!B180 -> Seguros maquinaria | C72: =ResultadosTécnicosEconómicos!C180 -> 0.0007583628081 | D72: 0.07583628081
B73: =ResultadosTécnicosEconómicos!B181 -> Seguros edificios | C73: =ResultadosTécnicosEconómicos!C181 -> 0.00113343452 | D73: =C73*100 -> 0.113343452
B74: =ResultadosTécnicosEconómicos!B182 -> Seguros Cosechas | C74: =ResultadosTécnicosEconómicos!C182 -> 0 | D74: 0
B75: =ResultadosTécnicosEconómicos!B183 -> Control lechero | C75: =ResultadosTécnicosEconómicos!C183 -> 0.001347109191 | D75: 0.1347109191
B76: =ResultadosTécnicosEconómicos!B184 -> Administración y gestoría | C76: =ResultadosTécnicosEconómicos!C184 -> 0.00150736275 | D76: 0.150736275
B77: =ResultadosTécnicosEconómicos!B185 -> Seguros varios | C77: =ResultadosTécnicosEconómicos!C185 -> 0.000322246775 | D77: 0.0322246775
B78: =ResultadosTécnicosEconómicos!B186 ->  | C78: =ResultadosTécnicosEconómicos!C186 -> 0 | D78: 0
B79: =ResultadosTécnicosEconómicos!B187 -> Costes Oportunidad | C79: =ResultadosTécnicosEconómicos!C187 -> 0.07571616997 | D79: 7.571616997
B80: =ResultadosTécnicosEconómicos!B188 -> Renta de la tierra | C80: =ResultadosTécnicosEconómicos!C188 -> 0.0125098833 | D80: 1.25098833
B81: =ResultadosTécnicosEconómicos!B189 -> Mano de obra familiar | C81: =ResultadosTécnicosEconómicos!C189 -> 0.06157599119 | D81: 6.157599119
B82: =ResultadosTécnicosEconómicos!B190 -> Interés capital propio | C82: =ResultadosTécnicosEconómicos!C190 -> 0.001630295485 | D82: 0.1630295485
B83: =ResultadosTécnicosEconómicos!B191 -> Costes totales (sin incluir costes de oportunidad) | C83: =ResultadosTécnicosEconómicos!C191 -> 0.3449378451 | D83: 34.49378451
B84: =ResultadosTécnicosEconómicos!B192 -> Costes totales (Incluyendo costes de oportunidad) | C84: =ResultadosTécnicosEconómicos!C192 -> 0.4206540151 | D84: 42.06540151
B85: =ResultadosTécnicosEconómicos!B193 -> Margen bruto | C85: =ResultadosTécnicosEconómicos!C193 -> 0.1833021677 | D85: 18.33021677
B86: =ResultadosTécnicosEconómicos!B194 -> Margen neto | C86: =ResultadosTécnicosEconómicos!C194 -> 0.07594454892 | D86: 7.594454892
B87: =ResultadosTécnicosEconómicos!B195 -> Beneficio | C87: =ResultadosTécnicosEconómicos!C195 -> 0.0002283789482 | D87: 0.02283789482
B88: =ResultadosTécnicosEconómicos!B196 -> RUT (Renta Unitaria del trabajo) | C88: =ResultadosTécnicosEconómicos!C196 -> 0.0369121174 | D88: 3.69121174
B89: =ResultadosTécnicosEconómicos!B197 -> Llindar rendibilitat MN | C89: =ResultadosTécnicosEconómicos!C197 -> 0.2606010459 | D89: =C89*100 -> 26.06010459
B90: =ResultadosTécnicosEconómicos!B198 -> Llindar rendibilitat B | C90: =ResultadosTécnicosEconómicos!C198 -> 0.3363172158 | D90: 33.63172158

Sheet Criterios
A2: Leche Terneros
A3: Lec_Mam | B3: 6.5 | D3: Litros/dia de leche tomada por los terneros
A4: Dias_Mam | B4: 56 | D4: Dias que estan mamando los terneros
A6: Leche Homogeneizada
A7: tgr | B7: 3.8 | D7: % en grasa de referencia UE
A9: M.O.
A10: Hores_UTA | B10: 1920
A11: Preu_h_f | B11: =RendaR/Hores_UTA -> 16.40729167 | D11: € MO Familiar
A14: Amortizaciones
A15: AA_Edif | B15: 20 | D15: Años de amortizacion de los edificios
A16: AA_Maq | B16: 10 | D16: Años de amortizacion de la maquinaria
A17: AA_Frio | B17: 10 | D17: Años de amortizacion del equipo de frio
A18: AA_Cuota | B18: 10 | D18: Años de amortizacion de compra de cuota | N18: Para el cálculo de tu hipoteca te interesa la Media Mensual:
A19: A_Enc | B19: =EntradaDatosExplotación!E16 -> 2021 | D19: Año realizacion encuesta | N19: Euribor a un año (Media Mensual), en %: | U19: Gráfico de evolución del Euribor Mensual:
A20: A_Edif | B20: =A_Enc-AA_Edif -> 2001 | D20: Año final de amortizacion de edificio | O20: =A_Enc -> 2021
A21: A_Maq | B21: =A_Enc-AA_Maq -> 2011 | D21: Año final de amortizacion de maquinaria | N21: Enero | O21: -0.00505
A22: A_Frio | B22: =A_Enc-AA_Frio -> 2011 | D22: Año final de amortizacion de equipo de frio | N22: Febrero | O22: -0.00501
N23: Marzo | O23: -0.00487
A24: Precios de Ganado | N24: Abril | O24: -0.00484
A25: Precio ternera preñada | B25: =EntradaDatosExplotación!E20 -> 1457.5 | N25: Mayo | O25: -0.00481
A26: Precio vaca primer | B26: =EntradaDatosExplotación!E21 -> 1325 | N26: Junio | O26: -0.00484
N27: Julio | O27: -0.00491
N28: Agosto | O28: -0.00498
N29: Septiembre | O29: -0.00492
N30: Octubre | O30: -0.00477
N31: Noviembre | O31: -0.00487
A32: Tipo de Interes | N32: Diciembre | O32: -0.00502
N33: mitjana | O33: =AVERAGE(O21:O32) -> -0.0049075
A34: Int_Cap_Cir | B34: =EntradaDatosExplotación!E19 -> 0.005393333333
A35: Int_Cuo | B35: =EntradaDatosExplotación!E19 -> 0.005393333333
A36: Int_Maq | B36: =EntradaDatosExplotación!E19 -> 0.005393333333 | N36: http://www.euribordiario.es/
A37: Int_Edif | B37: =EntradaDatosExplotación!E18 -> 0.005393333333
A38: Int_Frio | B38: =EntradaDatosExplotación!E19 -> 0.005393333333
A39: Int_Gan | B39: =EntradaDatosExplotación!E19 -> 0.005393333333
N40: Toros, vacas y otros animales de la especie bovina de más de dos años y equinos de más de seis meses: 1,0 UGM
A41: sistema limpieza | N41: Animales de la especie bovina de seis meses a dos años: 0,6 UGM
A42: pala | N42: Animales de la especie bovina de menos de seis meses: 0,4 UGM
A43: arrastrador
A44: agua
A45: slats
A46: otros
A47: tipo estabulación
A48: trabada
A49: Libre_cubículos
A50: Libre_clásica
A51: bebederos
A52: Pica_clásica
A53: Pica_boya
A54: reversible
A55: cazoleta
A56: ordeño
A57: directo
A58: Paral_Girona
A59: Espina_pescado
A60: Espina_rápida
A61: Paral_rápida
A62: rotativa
A63: Línea de leche
A64: baja
A65: alta
A66: media
A67: pulsador
A68: neumático
A69: electrónico
A70: Succión / Masaje
A71: 50_50
A72: 60_40
A73: 70_30
A74: Retiradors ordeñadoras
A75: si
A76: no
A77: presión ordeño
A78: 42-44 kpa
A79: > 44 kpa
A80: Número de ordeñadores
A81: uno
A82: dos
A83: tres
A84: > 3
A85: Tiempo de un ordeño
A86: <= 90 minutos
A87: > 90 minutos
A88: inyecta oxitocina
A89: no
A90: puntualmente
A91: <50%
A92: > 50%
A93: Grado limpieza instalaciones ordeñar
A94: bueno
A95: regular
A96: deficiente
A97: Grado limpieza ubres vacas
A98: bueno
A99: regular
A100: deficiente
A101: Frecuencia control gestación
A102: no
A103: 1 por mes
A104: 2 por mes
A105: 3 por mes
A106: indeterminado
A107: Primera causa reposición
A108: infertilidad
A109: producción
A110: puntos
A111: ubres_mamitis
A112: edad
A113: patas
A114: Segunda causa reposición
A115: infertilidad
A116: producción
A117: puntos
A118: ubres_mamitis
A119: edad
A120: patas
A121: Primera causa elección
A122: No sabe
A123: producción
A124: ubres_mamitis
A125: puntos
A126: producción_sólidos
A127: por programa
A128: Segunda causa elección
A129: No sabe
A130: producción
A131: ubres_mamitis
A132: puntos
A133: producción_sólidos
A134: por programa
A135: Primer tipo semen elegido
A136: americano
A137: canadiense
A138: país
A139: no probado
A140: francés
A141: alemán
A142: italiano
A143: holandés
A144: otros
A145: no insemina
A146: Segundo tipo semen elegido
A147: americano
A148: canadiense
A149: país
A150: no probado
A151: francés
A152: alemán
A153: italiano
A154: holandés
A155: otros
A156: carne
A157: Primer problema manejo
A158: mamitis
A159: retenciones placenta
A160: torsiones
A161: infertilidad
A162: cojeras
A163: fiebres de la leche
A164: otros
A165: no indica
A166: Valoración primer problema manejo
A167: no valora
A168: preocupa
A169: normal
A170: Segundo problema manejo
A171: mamitis
A172: retenciones placenta
A173: torsiones
A174: infertilidad
A175: cojeras
A176: fiebres de la leche
A177: otros
A178: no indica
A179: Valoración segundo problema manejo
A180: no valora
A181: preocupa
A182: normal
A183: ¿Qué problema no tiene
A184: mamitis
A185: retenciones placenta
A186: torsiones
A187: infertilidad
A188: cojeras
A189: fiebres de la leche
A190: otros
A191: no indica
A192: lotes lactación
A193: no
A194: dos
A195: tres
A196: > tres
A197: Altura rastrillo alim
A198: suficiente
A199: insuficiente
A200: ventiladores
A201: sí
A202: no
A203: difusores agua
A204: sí
A205: no
... 77 more rows
